Workbook

Sheet Audiovisuel
A1: Nombre de monographies audiovisuelles reçues par dépôt légal
A2: Nombre dépôts | B2: 2016 | C2: 2017 | D2: 2018
A3: Son | B3: 8797 | C3: 8230 | D3: 7733
A4: Vidéo | B4: 10273 | C4: 10230 | D4: 5770
A5: Multimédias multisupports | B5: 1605 | C5: 1045 | D5: 817
A6: Multimédias monosupport | B6: 1850 | C6: 739 | D6: 945
A7: Source : Entrées dépôt légal | B7: =SUM(B3:B6) -> 22525 | C7: =SUM(C3:C6) -> 20244 | D7: =SUM(D3:D6) -> 15265
A10: Nombre de monographies audiovisuelles par grande classe thématique par année
A11: Classes thématiques | B11: 2016 | C11: 2017 | D11: 2018
A12: Enregistrements sonores | B12: =SUM(B13:B23) -> 11871 | C12: =SUM(C13:C23) -> 5487 | D12: 5826
A13: 101 chanson francophone | B13: 878 | C13: 374 | D13: 407
A14: 102 chanson non francophone | B14: 143 | C14: 74 | D14: 114
A15: 103 jazz et blues | B15: 1387 | C15: 614 | D15: 471
A16: 104 musique classique | B16: 1604 | C16: 534 | D16: 630
A17: 105 musiques traditionnelles | B17: 254 | C17: 59 | D17: 93
A18: 106 rock | B18: 5824 | C18: 3243 | D18: 3329
A19: 107 variété instrumentale et vocale | B19: 812 | C19: 186 | D19: 153
A20: 108 autres musiques (musique de film, musique militaire...) | B20: 291 | C20: 181 | D20: 210
A21: 109 enregistrements parlés | B21: 404 | C21: 125 | D21: 309
A22: 110 sons naturels, bruitages | B22: 16 | C22: 1 | D22: 4
A23: 111 disques et cassettes pour enfants | B23: 258 | C23: 96 | D23: 106
A24: Images animées | B24: =SUM(B25:B33) -> 4813 | C24: =SUM(C25:C33) -> 4681 | D24: 4210
A25: 201 philosophie, histoire, sciences de l'homme | B25: 755 | C25: 487 | D25: 555
A26: 202 droit, économie, politique | B26: 209 | C26: 136 | D26: 223
A27: 203 sciences et techniques | B27: 432 | C27: 379 | D27: 611
A28: 204 littérature et arts | B28: 302 | C28: 214 | D28: 508
A29: 205 vidéo musicale et spectacles vivants | B29: 335 | C29: 334 | D29: 290
A30: 206 publicité | B30: 106 | C30: 10 | D30: 133
A31: 207 fiction | B31: 2105 | C31: 2577 | D31: 1602
A32: 208 fiction jeunesse | B32: 429 | C32: 408 | D32: 180
A33: 209 vie pratique, sports, loisirs | B33: 140 | C33: 136 | D33: 108
A34: Documents électroniques | B34: =SUM(B35:B48) -> 822 | C34: =SUM(C35:C48) -> 361 | D34: 453
A35: 301 généralités | B35: 11 | C35: 1 | D35: 3
A36: 302 informatique et logiciels | B36: 205 | C36: 10 | D36: 147
A37: 303 arts et lettres | B37: 22 | C37: 3 | D37: 4
A38: 304 histoire, géographie et cartographie | B38: 21 | C38: 6 | D38: 11
A39: 305 philosophie, psychologie, religion | B39: 3 | C39: 1 | D39: 4
A40: 306 droit, administration, politique, statistique | B40: 14 | C40: 0 | D40: 7
A41: 307 économie et commerce | B41: 0 | C41: 0 | D41: 0
A42: 308 formation et enseignement | B42: 84 | C42: 22 | D42: 37
A43: 309 jeunesse et ludo-éducatif | B43: 12 | C43: 4 | D43: 3
A44: 310 sciences pures | B44: 1 | C44: 1 | D44: 3
A45: 311 médecine, santé | B45: 2 | C45: 0 | D45: 3
A46: 312 sciences appliquées, industrie, agriculture | B46: 19 | C46: 6 | D46: 11
A47: 313 jeu vidéo | B47: 410 | C47: 292 | D47: 196
A48: 314 vie pratique, loisirs, sport | B48: 18 | C48: 15 | D48: 24
A49: Multisupports | B49: =SUM(B50:B62) -> 758 | C49: =SUM(C50:C62) -> 783 | D49: 793
A50: 401 généralités, encyclopédies, dictionnaires, informatique | B50: 2 | C50: 4 | D50: 4
A51: 402 philosophie, psychologie, ésotérisme, phénomènes paranormaux | B51: 50 | C51: 69 | D51: 54
A52: 403 religion | B52: 16 | C52: 11 | D52: 14
A53: 404 sciences économiques, juridiques et sociales, éducation et enseignement | B53: 96 | C53: 80 | D53: 76
A54: 405 linguistique, méthodes de langue | B54: 124 | C54: 105 | D54: 135
A55: 406 sciences, agriculture, industrie | B55: 42 | C55: 38 | D55: 30
A56: 407 arts, arts du spectacle | B56: 54 | C56: 43 | D56: 46
A57: 408 musique | B57: 68 | C57: 110 | D57: 116
A58: 409 films de fiction | B58: 4 | C58: 5 | D58: 3
A59: 410 jeux, sports, vie pratique | B59: 25 | C59: 31 | D59: 38
A60: 411 littérature | B60: 31 | C60: 43 | D60: 50
A61: 412 histoire, biographies, géographie et voyages | B61: 49 | C61: 33 | D61: 40
A62: 413 fiction jeunesse | B62: 197 | C62: 211 | D62: 187
A63: TOTAL | B63: =SUM(B49,B34,B24,B12) -> 18264 | C63: =SUM(C49,C34,C24,C12) -> 11312 | D63: 11282
A64: Source : Bibliographie nationale française - Audiovisuel
A66: Nombre de monographies audiovisuelles par genre audiovisuel et année
A67: Genres audiovisuels | B67: 2016 | C67: 2017 | D67: 2018
A68: rock | B68: 5793 | C68: 3418 | D68: 3557
A69: non fiction | B69: 2369 | C69: 1558 | D69: 2319
A70: fiction | B70: 2694 | C70: 3170 | D70: 2141
A71: chanson | B71: 2246 | C71: 1029 | D71: 1310
A72: musique classique | B72: 2763 | C72: 1023 | D72: 1105
A73: enregistrement parlé | B73: 832 | C73: 502 | D73: 761
A74: jazz et blues | B74: 1547 | C74: 694 | D74: 553
A75: musiques traditionnelles | B75: 666 | C75: 243 | D75: 314
A76: musique (divers) | B76: 382 | C76: 264 | D76: 281
A77: jeu vidéo | B77: 506 | C77: 386 | D77: 276
A78: création | B78: 38 | C78: 31 | D78: 216
A79: variété instrumentale et vocale | B79: 917 | C79: 217 | D79: 170
A80: musiques électroniques | B80: 0 | C80: 134 | D80: 156
A81: musique fonctionnelle | B81: 487 | C81: 15 | D81: 39
A82: musique non spécifiée | B82: 0 | C82: 1 | D82: 26
A83: sons naturels | B83: 43 | C83: 8 | D83: 16
A84: humour | B84: 43 | C84: 25 | D84: 15
A85: bruitage | B85: 6 | C85: 3 | D85: 7
A86: musique de genre | B86: 4 | C86: 2 | D86: 3
A87: bruitage, fonds sonore | B87: 3 | C87: 1 | D87: 3
A88: études et recherches | B88: 10 | C88: 0 | D88: 3
A89: édition électronique | B89: 18 | C89: 3 | D89: 2
A90: (vide) | B90: 0 | C90: 591 | D90: 0
A91: manuels et cours (tous niveaux confondus) | B91: 0 | C91: 91 | D91: 0
A92: bande dessinée | B92: 0 | C92: 20 | D92: 0
A93: autre | B93: 0 | C93: 4 | D93: 0
A94: lois et textes réglementaires | B94: 0 | C94: 3 | D94: 0
A95: actes de congrès | B95: 0 | C95: 2 | D95: 0
A96: dictionnaire, thésaurus lexicographique | B96: 0 | C96: 1 | D96: 0
A97: encyclopédie | B97: 0 | C97: 1 | D97: 0
A98: thèse de doctorat | B98: 0 | C98: 1 | D98: 0
A99: Total | B99: =SUM(B68:B98) -> 21367 | C99: =SUM(C68:C98) -> 13441 | D99: =SUM(D68:D98) -> 13273
A100: Source : Bibliographie nationale française - Audiovisuel
A102: Nombre de monographies audiovisuelles par mode de diffusion et année
A103: Mode de diffusion | B103: 2016 | C103: 2017 | D103: 2018
A104: édition phonographique | B104: 11849 | C104: 5468 | D104: 5815
A105: édition vidéo commerciale | B105: 3044 | C105: 3715 | D105: 1988
A106: édition commerciale | B106: 1527 | C106: 1054 | D106: 1222
A107: circuit institutionnel | B107: 509 | C107: 133 | D107: 302
A108: associatif | B108: 0 | C108: 235 | D108: 280
A109: diffusion en ligne | B109: 0 | C109: 5 | D109: 23
A110: diffusion à la télévision | B110: 3 | C110: 0 | D110: 4
A111: diffusion à la radio | B111: 2 | C111: 2 | D111: 1
A112: téléchargement | B112: 0 | C112: 0 | D112: 1
A113: salle de cinéma commerciale | B113: 2 | C113: 68 | D113: 0
A114: Total | B114: =SUM(B104:B113) -> 16936 | C114: =SUM(C104:C113) -> 10680 | D114: =SUM(D104:D113) -> 9636
A115: Source : Bibliographie nationale française - Audiovisuel
A117: Nombre de monographies audiovisuelles par public ou fonction et année
A118: Public destinataire ou fonction | B118: 2016 | C118: 2017 | D118: 2018
A119: audiovisuel d'entreprise | B119: 390 | C119: 223 | D119: 545
A120: promotion | B120: 36 | C120: 129 | D120: 330
A121: enfance | B121: 385 | C121: 289 | D121: 246
A122: jeunesse | B122: 195 | C122: 212 | D122: 137
A123: publicité | B123: 183 | C123: 20 | D123: 133
A124: autoformation | B124: 127 | C124: 138 | D124: 123
A125: adulte | B125: 172 | C125: 136 | D125: 91
A126: enseignement scolaire primaire | B126: 88 | C126: 71 | D126: 84
A127: enseignement scolaire secondaire | B127: 42 | C127: 35 | D127: 69
A128: petite enfance | B128: 147 | C128: 99 | D128: 58
A129: adolescence | B129: 139 | C129: 77 | D129: 52
A130: recherche | B130: 11 | C130: 12 | D130: 41
A131: enseignement technique | B131: 3 | C131: 13 | D131: 39
A132: enseignement | B132: 12 | C132: 22 | D132: 36
A133: formation professionnelle, formation continue | B133: 66 | C133: 23 | D133: 29
A134: enseignement préscolaire : maternelle | B134: 16 | C134: 11 | D134: 14
A135: ludo-éducatif | B135: 16 | C135: 15 | D135: 9
A136: expert, spécialiste | B136: 18 | C136: 8 | D136: 9
A137: handicap visuel | B137: 0 | C137: 1 | D137: 7
A138: enseignement supérieur | B138: 60 | C138: 7 | D138: 4
A139: handicap auditif | B139: 2 | C139: 1 | D139: 1
A140: déficience cognitive | B140: 0 | C140: 0 | D140: 1
A141: service public | B141: 0 | C141: 4 | D141: 0
A142: enseignement scolaire | B142: 3 | C142: 3 | D142: 0
A143: Total | B143: =SUM(B119:B142) -> 2111 | C143: =SUM(C119:C142) -> 1549 | D143: =SUM(D119:D142) -> 2058
A144: Source : Bibliographie nationale française - Audiovisuel
A146: Nombre de monographies audiovisuelles par forme et année
A147: Forme | B147: 2016 | C147: 2017 | D147: 2018
A148: court métrage | B148: 557 | C148: 396 | D148: 841
A149: compilation | B149: 0 | C149: 115 | D149: 475
A150: lecture | B150: 326 | C150: 189 | D150: 392
A151: série | B151: 438 | C151: 506 | D151: 284
A152: animation | B152: 508 | C152: 426 | D152: 282
A153: documentaire | B153: 274 | C153: 119 | D153: 282
A154: vidéomusique | B154: 191 | C154: 272 | D154: 260
A155: anthologie ou récital | B155: 619 | C155: 209 | D155: 210
A156: logiciel(s) d'application | B156: 233 | C156: 48 | D156: 154
A157: méthode de langue | B157: 118 | C157: 94 | D157: 125
A158: entretien | B158: 94 | C158: 63 | D158: 121
A159: cours, conférence | B159: 118 | C159: 87 | D159: 106
A160: manuel scolaire | B160: 70 | C160: 51 | D160: 98
A161: bande originale de film | B161: 25 | C161: 42 | D161: 98
A162: dessin animé | B162: 18 | C162: 110 | D162: 68
A163: évocation scénarisée | B163: 37 | C163: 21 | D163: 61
A164: récit, portrait | B164: 35 | C164: 32 | D164: 32
A165: reportage | B165: 41 | C165: 21 | D165: 28
A166: montage archives | B166: 18 | C166: 27 | D166: 25
A167: collectage | B167: 89 | C167: 18 | D167: 24
A168: méthode de musique | B168: 19 | C168: 45 | D168: 21
A169: bande originale radio tv | B169: 1 | C169: 14 | D169: 18
A170: congrès | B170: 19 | C170: 11 | D170: 18
A171: karaoké | B171: 5 | C171: 8 | D171: 11
A172: déclaration, allocution, discours | B172: 4 | C172: 1 | D172: 11
A173: animation avec marionnettes | B173: 11 | C173: 4 | D173: 9
A174: magazine | B174: 22 | C174: 8 | D174: 5
A175: encyclopédie, dictionnaire | B175: 3 | C175: 0 | D175: 4
A176: long métrage | B176: 1 | C176: 0 | D176: 4
A177: images de synthèse | B177: 8 | C177: 5 | D177: 3
A178: débat | B178: 13 | C178: 4 | D178: 3
A179: jeu | B179: 1 | C179: 0 | D179: 3
A180: réalité virtuelle | B180: 0 | C180: 0 | D180: 3
A181: base de données | B181: 0 | C181: 0 | D181: 2
A182: conférence de presse | B182: 3 | C182: 0 | D182: 2
A183: document brut | B183: 5 | C183: 0 | D183: 2
A184: réalité spectacle | B184: 0 | C184: 0 | D184: 2
A185: téléfilm | B185: 6 | C185: 13 | D185: 1
A186: intelligence / vie artificielle | B186: 0 | C186: 0 | D186: 1
A187: feuilleton | B187: 1 | C187: 14 | D187: 0
A188: émission de variétés | B188: 0 | C188: 2 | D188: 0
A189: chronique | B189: 0 | C189: 1 | D189: 0
A190: hit parade | B190: 0 | C190: 1 | D190: 0
A191: journal | B191: 1 | C191: 1 | D191: 0
A192: single | B192: 0 | C192: 1 | D192: 0
A193: didacticiel | B193: 2 | C193: 0 | D193: 0
A194: Total | B194: =SUM(B148:B193) -> 3934 | C194: =SUM(C148:C193) -> 2979 | D194: =SUM(D148:D193) -> 4089
A195: Source : Bibliographie nationale française - Audiovisuel
A197: Nombre de monographies audiovisuelles par pays de publication et année
A198: Pays de publication | B198: 2016 | C198: 2017 | D198: 2018
A199: France | B199: 15510 | C199: 7582 | D199: 7731
A200: Allemagne | B200: 642 | C200: 322 | D200: 642
A201: Royaume-Uni | B201: 783 | C201: 431 | D201: 458
A202: Etats-Unis | B202: 608 | C202: 309 | D202: 291
A203: Canada | B203: 121 | C203: 36 | D203: 43
A204: Pays-Bas | B204: 21 | C204: 19 | D204: 41
A205: (vide) | B205: 31 | C205: 36 | D205: 21
A206: Belgique | B206: 51 | C206: 25 | D206: 19
A207: Japon | B207: 37 | C207: 6 | D207: 14
... 264 more rows

Sheet Son
A1: Nombre de dépôts et déposants de monographies, répartis selon le nombre de dépôts annuels par déposant – Phonogrammes
A2: Son | B2: 2016 | D2: 2017 | F2: 2018
A3: Tranches | B3: Dépôts | C3: Déposants | D3: Dépôts | E3: Déposants | F3: Dépôts | G3: Déposants
A4: Plus de 50 | B4: 5984 | C4: 12 | D4: 6481 | E4: 13 | F4: 6015 | G4: 11
A5: 10 à 49 | B5: 1189 | C5: 62 | D5: 758 | E5: 38 | F5: 882 | G5: 44
A6: 2 à 9 | B6: 1262 | C6: 338 | D6: 767 | E6: 204 | F6: 660 | G6: 168
A7: 1 | B7: 362 | C7: 362 | D7: 224 | E7: 224 | F7: 176 | G7: 176
A8: Total | B8: =SUM(B4:B7) -> 8797 | C8: 774 | D8: 8230 | E8: 479 | F8: =SUM(F4:F7) -> 7733 | G8: =SUM(G4:G7) -> 399
A9: Source : Entrées dépôt légal
A11: Liste des 10 principaux déposants de monographies, par année de dépôt - Phonogrammes
B12: Déposant | C12: 2016 | E12: Déposant | F12: 2017 | H12: Déposant | I12: 2018
B13: Universal | C13: 1901 | E13: Warner music France | F13: 2096 | H13: Warner music France | I13: 2267
B14: Sony Music Entertainment | C14: 1361 | E14: Universal music France | F14: 1777 | H14: Universal music France | I14: 1707
B15: Warner Music France | C15: 1296 | E15: Sony music entertainment | F15: 1620 | H15: Sony music entertainment | I15: 1340
B16: Harmonia mundi distribution | C16: 421 | E16: Wagram music | F16: 170 | H16: ADF - Bayard musique | I16: 155
B17: Universal Publishing Production Music | C17: 236 | E17: Osmose productions | F17: 169 | H17: Audiolib / Hachette livre | I17: 105
B18: La Baleine | C18: 178 | E18: Modulor | F18: 121 | H18: Eitrini éditions | I18: 103
B19: WAGRAM MUSIC | C19: 159 | E19: Audiolib / Hachette livre | F19: 99 | H19: Wagram music | I19: 98
B20: Universal Caroline | C20: 130 | E20: Editions Gallimard | F20: 81 | H20: Harmonia mundi distribution | I20: 86
B21: Atelier du Carmel | C21: 85 | E21: Frémeaux & Associés | F21: 77 | H21: Orkhêstra international | I21: 53
B22: Naïve distribution | C22: 75 | E22: PIAS France | F22: 73 | H22: Socadisc | I22: 51
B23: Total | C23: =SUM(C13:C22) -> 5842 | E23: Total | F23: =SUM(F13:F22) -> 6283 | H23: Total | I23: =SUM(I12:I22) -> 7983
A24: Source : Entrées dépôt légal
A26: Nombre de déposants de monographies par département et région déposant - Phonogrammes
A27: Départements | B27: 2016 | C27: 2017 | D27: 2018 | F27: Régions | G27: 2016 | H27: 2017 | I27: 2018
A28: Ain | B28: 6 | C28: 5 | D28: 3 | F28: Auvergne - Rhône Alpes | G28: 77 | H28: 36 | I28: 29 | K28: Ain, Allier, Ardèche, Cantal, Drôme, Haute-Loire, Haute-Savoie, Isère, Loire, Puy-de-Dôme, Rhône, Savoie
A29: Aisne | B29: 2 | C29: 3 | D29: 1 | F29: Bourgogne - Franche-Comté | G29: 17 | H29: 19 | I29: 15 | K29: Côte d'Or, Doubs, Haute-Saône, Jura, Nièvre, Saône-et-Loire, Territoire de Belfort, Yonne
A30: Allier | B30: 0 | C30: 1 | D30: 1 | F30: Bretagne | G30: 49 | H30: 23 | I30: 23 | K30: Côte d'Armor, Finistère, Ille-et-Vilaine, Morbihan
A31: Alpes-de-Haute-Provence | B31: 1 | C31: 0 | D31: 1 | F31: Centre - Val-de-Loire | G31: 25 | H31: 15 | I31: 17 | K31: Cher, Eure-et-Loire, Indre, Indre-et-Loire, Loiret, Loir-et-Cher
A32: Alpes-Maritimes | B32: 9 | C32: 5 | D32: 2 | F32: Corse | G32: 6 | H32: 1 | I32: 2
A33: Ardèche | B33: 1 | C33: 1 | D33: 0 | F33: Grand-Est | G33: 48 | H33: 24 | I33: 15 | K33: Ardennes, Aube, Bas-Rhin, Haute-Marne, Haut-Rhin, Marne, Meurthe-et-Moselle, Meuse, Moselle, Vosges
A34: Ardennes | B34: 0 | C34: 0 | D34: 0 | F34: Hauts-de-France | G34: 21 | H34: 24 | I34: 10 | K34: Aisne, Nord, Oise, Pas-de-Calais, Somme
A35: Ariège | B35: 0 | C35: 2 | D35: 1 | F35: Ile-de-France | G35: 302 | H35: 195 | I35: 182 | K35: Essone, Hauts-de-Seine, Paris, Seine-et-Marne, Seine-Saint-Denis, Yvelines, Val-de-Marne, Val-d'Oise
A36: Aube | B36: 3 | C36: 0 | D36: 0 | F36: Normandie | G36: 27 | H36: 12 | I36: 10 | K36: Calvados, Eure, Manche, Orne, Seine-Maritime
A37: Aude | B37: 4 | C37: 4 | D37: 3 | F37: Nouvelle-Aquitaine | G37: 48 | H37: 31 | I37: 26 | K37: Charente, Charente-Maritime, Corrèze, Creuse, Deux-Sèvres, Dordogne, Gironde, Haute-Vienne, Landes, Lot-et-Garonne, Pyrénées-Atlantiques, Vienne
A38: Aveyron | B38: 2 | C38: 2 | D38: 0 | F38: Occitanie | G38: 60 | H38: 43 | I38: 29 | K38: Ariège, Aude, Aveyron, Gard, Gers, Haute-Garonne, Hautes-Pyrénées, Hérault, Lot, Lozère, Pyrénées-Orientales, Tarn, Tarn-et-Garonne
A39: Bas-Rhin | B39: 15 | C39: 12 | D39: 2 | F39: Outre-mer | G39: 7 | H39: 2 | I39: 2 | K39: Guadeloupe, Guyane, Martinique, Mayotte, Nouvelle-Calédonie, Polynésie française, Réunion, Saint-Pierre-et-Miquelon
A40: Bouches-du-Rhône | B40: 20 | C40: 13 | D40: 8 | F40: Pays de la Loire | G40: 35 | H40: 24 | I40: 18 | K40: Loire-Atlantique, Maine-et-Loire, Mayenne, Sarthe, Vendée
A41: Calvados | B41: 4 | C41: 4 | D41: 4 | F41: Provence-Alpes-Côte d'Azur | G41: 45 | H41: 27 | I41: 17 | K41: Alpes-de-Haute-Provence, Alpes-Maritimes, Bouches-du-Rhône, Hautes-Alpes, Var, Vaucluse
A42: Cantal | B42: 1 | C42: 0 | D42: 0 | F42: pas de département spécifié | G42: 7 | H42: 3 | I42: 4
A43: Charente | B43: 2 | C43: 0 | D43: 1 | F43: Total | G43: 774 | H43: 479 | I43: =SUM(I28:I42) -> 399
A44: Charente-Maritime | B44: 4 | C44: 2 | D44: 3
A45: Cher | B45: 4 | C45: 1 | D45: 3
A46: Corrèze | B46: 0 | C46: 3 | D46: 0
A47: Corse | B47: 6 | C47: 1 | D47: 2
A48: Côte-d'Or | B48: 0 | C48: 3 | D48: 3
A49: Côtes-d'Armor | B49: 11 | C49: 6 | D49: 4
A50: Creuse | B50: 4 | C50: 1 | D50: 2
A51: Deux-Sèvres | B51: 1 | C51: 1 | D51: 1
A52: Dordogne | B52: 4 | C52: 3 | D52: 0
A53: Doubs | B53: 7 | C53: 5 | D53: 3
A54: Drôme | B54: 8 | C54: 2 | D54: 2
A55: Essonne | B55: 15 | C55: 13 | D55: 8
A56: Eure | B56: 0 | C56: 1 | D56: 1
A57: Eure-et-Loir | B57: 3 | C57: 1 | D57: 2
A58: Finistère | B58: 13 | C58: 6 | D58: 5
A59: Gard | B59: 8 | C59: 2 | D59: 1
A60: Gers | B60: 1 | C60: 0 | D60: 0
A61: Gironde | B61: 20 | C61: 15 | D61: 8
A62: Guadeloupe | B62: 2 | C62: 0 | D62: 0
A63: Guyane | B63: 1 | C63: 0 | D63: 0
A64: Haut-Rhin | B64: 4 | C64: 2 | D64: 2
A65: Haute-Garonne | B65: 19 | C65: 18 | D65: 13
A66: Haute-Loire | B66: 1 | C66: 1 | D66: 0
A67: Haute-Marne | B67: 2 | C67: 0 | D67: 0
A68: Haute-Saône | B68: 1 | C68: 0 | D68: 1
A69: Haute-Savoie | B69: 3 | C69: 5 | D69: 1
A70: Haute-Vienne | B70: 5 | C70: 0 | D70: 1
A71: Hautes-Alpes | B71: 1 | C71: 0 | D71: 0
A72: Hautes-Pyrénées | B72: 0 | C72: 0 | D72: 0
A73: Hauts-de-Seine | B73: 28 | C73: 16 | D73: 18
A74: Hérault | B74: 17 | C74: 6 | D74: 6
A75: Ille-et-Vilaine | B75: 20 | C75: 8 | D75: 8
A76: Indre | B76: 0 | C76: 1 | D76: 1
A77: Indre-et-Loire | B77: 7 | C77: 5 | D77: 4
A78: Isère | B78: 17 | C78: 3 | D78: 2
A79: Jura | B79: 0 | C79: 1 | D79: 0
A80: Landes | B80: 3 | C80: 1 | D80: 2
A81: Loir-et-Cher | B81: 2 | C81: 2 | D81: 2
A82: Loire | B82: 3 | C82: 1 | D82: 3
A83: Loire-Atlantique | B83: 20 | C83: 9 | D83: 9
A84: Loiret | B84: 9 | C84: 5 | D84: 5
A85: Lot | B85: 2 | C85: 1 | D85: 1
A86: Lot-et-Garonne | B86: 3 | C86: 0 | D86: 0
A87: Lozère | B87: 0 | C87: 0 | D87: 0
A88: Maine-et-Loire | B88: 7 | C88: 5 | D88: 4
A89: Manche | B89: 7 | C89: 1 | D89: 1
A90: Marne | B90: 8 | C90: 0 | D90: 7
A91: Martinique | B91: 0 | C91: 0 | D91: 0
A92: Mayenne | B92: 2 | C92: 3 | D92: 2
A93: Mayotte | B93: 0 | C93: 0 | D93: 0
A94: Meurthe-et-Moselle | B94: 11 | C94: 5 | D94: 1
A95: Meuse | B95: 1 | C95: 0 | D95: 1
A96: Morbihan | B96: 5 | C96: 3 | D96: 5
A97: Moselle | B97: 2 | C97: 4 | D97: 1
A98: Nièvre | B98: 1 | C98: 1 | D98: 2
A99: Nord | B99: 10 | C99: 9 | D99: 4
A100: Nouvelle-Calédonie | B100: 0 | C100: 0 | D100: 0
A101: Oise | B101: 5 | C101: 6 | D101: 4
A102: Orne | B102: 2 | C102: 1 | D102: 0
A103: Paris | B103: 167 | C103: 110 | D103: 103
A104: pas de département | B104: 7 | C104: 3 | D104: 4
A105: Pas-de-Calais | B105: 3 | C105: 4 | D105: 1
A106: Polynésie Française | B106: 0 | C106: 0 | D106: 0
A107: Puy-de-Dôme | B107: 8 | C107: 2 | D107: 4
A108: Pyrénées-Atlantiques | B108: 0 | C108: 3 | D108: 6
A109: Pyrénées-Orientales | B109: 1 | C109: 0 | D109: 2
A110: Réunion | B110: 4 | C110: 2 | D110: 2
A111: Rhône | B111: 22 | C111: 15 | D111: 12
A112: Saint-Pierre-et-Miquelon | B112: 0 | C112: 0 | D112: 0
A113: Saône-et-Loire | B113: 6 | C113: 4 | D113: 3
A114: Sarthe | B114: 3 | C114: 4 | D114: 2
A115: Savoie | B115: 7 | C115: 0 | D115: 1
A116: Seine-et-Marne | B116: 15 | C116: 8 | D116: 8
A117: Seine-Maritime | B117: 14 | C117: 5 | D117: 4
A118: Seine-Saint-Denis | B118: 30 | C118: 19 | D118: 15
A119: Somme | B119: 1 | C119: 2 | D119: 0
A120: Tarn | B120: 5 | C120: 7 | D120: 2
A121: Tarn-et-Garonne | B121: 1 | C121: 1 | D121: 0
A122: Territoire de Belfort | B122: 0 | C122: 1 | D122: 0
A123: Val-d'Oise | B123: 6 | C123: 5 | D123: 8
A124: Val-de-Marne | B124: 25 | C124: 15 | D124: 13
A125: Var | B125: 12 | C125: 4 | D125: 6
A126: Vaucluse | B126: 2 | C126: 5 | D126: 1
A127: Vendée | B127: 3 | C127: 3 | D127: 1
A128: Vienne | B128: 2 | C128: 2 | D128: 2
A129: Vosges | B129: 2 | C129: 1 | D129: 1
A130: Yonne | B130: 2 | C130: 4 | D130: 3
A131: Yvelines | B131: 16 | C131: 9 | D131: 9
A132: Total | B132: =SUM(B28:B131) -> 774 | C132: =SUM(C28:C131) -> 479 | D132: =SUM(D28:D131) -> 399
A133: Source : Entrées dépôt légal
A135: Nombre de dépôts de monographies par département et région déposant - Phonogrammes
A136: Département | B136: 2016 | C136: 2017 | D136: 2018 | F136: Régions | G136: 2016 | H136: 2017 | I136: 2018
A137: Ain | B137: 9 | C137: 23 | D137: 4 | F137: Auvergne - Rhône Alpes | G137: 244 | H137: 158 | I137: 167 | K137: Ain, Allier, Ardèche, Cantal, Drôme, Haute-Loire, Haute-Savoie, Isère, Loire, Puy-de-Dôme, Rhône, Savoie
A138: Aisne | B138: 9 | C138: 4 | D138: 1 | F138: Bourgogne - Franche-Comté | G138: 52 | H138: 60 | I138: 31 | K138: Côte d'Or, Doubs, Haute-Saône, Jura, Nièvre, Saône-et-Loire, Territoire de Belfort, Yonne
A139: Allier | B139: 0 | C139: 5 | D139: 11 | F139: Bretagne | G139: 341 | H139: 60 | I139: 79 | K139: Côte d'Armor, Finistère, Ille-et-Vilaine, Morbihan
A140: Alpes-de-Haute-Provence | B140: 2 | C140: 0 | D140: 3 | F140: Centre - Val-de-Loire | G140: 92 | H140: 78 | I140: 105 | K140: Cher, Eure-et-Loire, Indre, Indre-et-Loire, Loiret, Loir-et-Cher
A141: Alpes-Maritimes | B141: 33 | C141: 8 | D141: 5 | F141: Corse | G141: 55 | H141: 5 | I141: 6
A142: Ardèche | B142: 19 | C142: 8 | D142: 0 | F142: Grand est | G142: 157 | H142: 101 | I142: 29 | K142: Ardennes, Aube, Bas-Rhin, Haute-Marne, Haut-Rhin, Marne, Meurthe-et-Moselle, Meuse, Moselle, Vosges
A143: Ardennes | B143: 0 | C143: 0 | D143: 0 | F143: Hauts-de-France | G143: 61 | H143: 272 | I143: 73 | K143: Aisne, Nord, Oise, Pas-de-Calais, Somme
A144: Ariège | B144: 0 | C144: 7 | D144: 1 | F144: Ile-de-France | G144: 6235 | H144: 6857 | I144: 6580 | K144: Essone, Hauts-de-Seine, Paris, Seine-et-Marne, Seine-Saint-Denis, Yvelines, Val-de-Marne, Val-d'Oise
A145: Aube | B145: 4 | C145: 0 | D145: 0 | F145: Normandie | G145: 62 | H145: 48 | I145: 30 | K145: Calvados, Eure, Manche, Orne, Seine-Maritime
A146: Aude | B146: 5 | C146: 44 | D146: 14 | F146: Nouvelle Aquitaine | G146: 405 | H146: 222 | I146: 93 | K146: Charente, Charente-Maritime, Corrèze, Creuse, Deux-Sèvres, Dordogne, Gironde, Haute-Vienne, Landes, Lot-et-Garonne, Pyrénées-Atlantiques, Vienne
A147: Aveyron | B147: 11 | C147: 2 | D147: 0 | F147: Occitanie | G147: 173 | H147: 197 | I147: 153 | K147: Ariège, Aude, Aveyron, Gard, Gers, Haute-Garonne, Hautes-Pyrénées, Hérault, Lot, Lozère, Pyrénées-Orientales, Tarn, Tarn-et-Garonne
A148: Bas-Rhin | B148: 39 | C148: 37 | D148: 2 | F148: Outre-mer | G148: 11 | H148: 2 | I148: 3 | K148: Guadeloupe, Guyane, Martinique, Mayotte, Nouvelle-Calédonie, Polynésie française, Réunion, Saint-Pierre-et-Miquelon
A149: Bouches-du-Rhône | B149: 498 | C149: 59 | D149: 111 | F149: pas de département spécifié | G149: 88 | H149: 6 | I149: 12
A150: Calvados | B150: 5 | C150: 22 | D150: 6 | F150: Pays de la Loire | G150: 258 | H150: 69 | I150: 236 | K150: Loire-Atlantique, Maine-et-Loire, Mayenne, Sarthe, Vendée
A151: Cantal | B151: 1 | C151: 0 | D151: 0 | F151: Provence-Alpes-Côte d'Azur | G151: 563 | H151: 94 | I151: 136 | K151: Alpes-de-Haute-Provence, Alpes-Maritimes, Bouches-du-Rhône, Hautes-Alpes, Var, Vaucluse
A152: Charente | B152: 2 | C152: 0 | D152: 2 | F152: Total | G152: 8797 | H152: 8229 | I152: =SUM(I137:I151) -> 7733
A153: Charente-Maritime | B153: 47 | C153: 60 | D153: 29
A154: Cher | B154: 5 | C154: 2 | D154: 5
A155: Corrèze | B155: 0 | C155: 8 | D155: 0
A156: Corse | B156: 55 | C156: 5 | D156: 6
A157: Côte-d'Or | B157: 0 | C157: 8 | D157: 4
A158: Côtes-d'Armor | B158: 31 | C158: 9 | D158: 28
A159: Creuse | B159: 20 | C159: 4 | D159: 7
A160: Deux-Sèvres | B160: 178 | C160: 1 | D160: 1
A161: Dordogne | B161: 31 | C161: 3 | D161: 0
A162: Doubs | B162: 15 | C162: 6 | D162: 8
A163: Drôme | B163: 37 | C163: 2 | D163: 2
A164: Essonne | B164: 1976 | C164: 1844 | D164: 1781
A165: Eure | B165: 0 | C165: 6 | D165: 12
A166: Eure-et-Loir | B166: 13 | C166: 24 | D166: 4
A167: Finistère | B167: 185 | C167: 30 | D167: 19
A168: Gard | B168: 17 | C168: 4 | D168: 1
A169: Gers | B169: 1 | C169: 0 | D169: 0
A170: Gironde | B170: 73 | C170: 62 | D170: 33
A171: Guadeloupe | B171: 3 | C171: 0 | D171: 0
A172: Guyane | B172: 1 | C172: 0 | D172: 0
A173: Haut-Rhin | B173: 6 | C173: 2 | D173: 3
A174: Haute-Garonne | B174: 60 | C174: 68 | D174: 81
A175: Haute-Loire | B175: 1 | C175: 1 | D175: 0
A176: Haute-Marne | B176: 2 | C176: 0 | D176: 0
A177: Haute-Saône | B177: 1 | C177: 0 | D177: 5
A178: Haute-Savoie | B178: 6 | C178: 16 | D178: 1
A179: Haute-Vienne | B179: 5 | C179: 0 | D179: 1
A180: Hautes-Alpes | B180: 1 | C180: 0 | D180: 0
A181: Hautes-Pyrénées | B181: 0 | C181: 0 | D181: 0
A182: Hauts-de-Seine | B182: 91 | C182: 43 | D182: 64
A183: Hérault | B183: 45 | C183: 28 | D183: 44
A184: Ille-et-Vilaine | B184: 114 | C184: 14 | D184: 24
A185: Indre | B185: 0 | C185: 1 | D185: 2
A186: Indre-et-Loire | B186: 23 | C186: 11 | D186: 26
A187: Isère | B187: 65 | C187: 32 | D187: 5
A188: Jura | B188: 0 | C188: 23 | D188: 0
A189: Landes | B189: 11 | C189: 2 | D189: 4
A190: Loir-et-Cher | B190: 17 | C190: 28 | D190: 30
A191: Loire | B191: 30 | C191: 1 | D191: 57
A192: Loire-Atlantique | B192: 82 | C192: 21 | D192: 60
A193: Loiret | B193: 34 | C193: 13 | D193: 38
A194: Lot | B194: 6 | C194: 1 | D194: 2
A195: Lot-et-Garonne | B195: 13 | C195: 0 | D195: 0
A196: Lozère | B196: 0 | C196: 0 | D196: 0
A197: Maine-et-Loire | B197: 146 | C197: 8 | D197: 159
A198: Manche | B198: 28 | C198: 2 | D198: 7
A199: Marne | B199: 30 | C199: 0 | D199: 16
A200: Martinique | B200: 0 | C200: 0 | D200: 0
A201: Mayenne | B201: 12 | C201: 9 | D201: 7
A202: Mayotte | B202: 0 | C202: 0 | D202: 0
A203: Meurthe-et-Moselle | B203: 69 | C203: 13 | D203: 1
... 79 more rows

Sheet Vidéo
A1: Nombre de dépôts et déposants de monographies, répartis selon le nombre de dépôts annuels par déposant – Vidéogrammes
A2: Vidéo | B2: 2016 | D2: 2017 | F2: 2018
A3: Tranches | B3: Dépôts | C3: Déposants | D3: Dépôts | E3: Déposants | F3: Dépôts | G3: Déposants
A4: Plus de 50 | B4: 8027 | C4: 38 | D4: 8576 | E4: 35 | F4: 4592 | G4: 29
A5: 10 à 49 | B5: 1409 | C5: 68 | D5: 1168 | E5: 53 | F5: 847 | G5: 39
A6: 2 à 9 | B6: 469 | C6: 121 | D6: 375 | E6: 100 | F6: 249 | G6: 71
A7: 1 | B7: 168 | C7: 168 | D7: 111 | E7: 111 | F7: 82 | G7: 82
A8: Total | B8: =SUM(B4:B7) -> 10073 | C8: 395 | D8: 10230 | E8: 299 | F8: =SUM(F4:F7) -> 5770 | G8: =SUM(G4:G7) -> 221
A9: Source : Entrées dépôt légal
A11: Liste des 10 principaux déposants de monographies par année de dépôt - Vidéogrammes
B12: Déposant | C12: 2016 | E12: Déposant | F12: 2017 | H12: Déposant | I12: 2018
B13: Caméra club Orsay faculté | C13: 1225 | E13: ONISEP | F13: 2376 | H13: Le Fresnoy | I13: 684
B14: OPSOMAI | C14: 956 | E14: Opsomai | F14: 645 | H14: Centre national du cinéma et de l'image animée | I14: 513
B15: Universal Studio Canal vidéo | C15: 726 | E15: Oroleis de Paris | F15: 581 | H15: Courts devant | I15: 415
B16: les Écrans du social | C16: 442 | E16: Centre international de création vidéo | F16: 570 | H16: Fédération française de cinéma et vidéo | I16: 308
B17: INFIPP SCOP SA | C17: 355 | E17: Universal pictures video France | F17: 458 | H17: Fox Pathé Europa | I17: 249
B18: Fédération française de cinéma et vidéo | C18: 340 | E18: Fox Pathé Europa | F18: 452 | H18: École internationale de création audiovisuelle et de réalisation | I18: 227
B19: Université Paris Diderot | C19: 332 | E19: Optimale | F19: 433 | H19: Benoit Labourdette production | I19: 206
B20: Universal Music | C20: 307 | E20: Fédération française de cinéma et vidéo | F20: 314 | H20: Universal pictures video France | I20: 163
B21: les Films du zébu | C21: 251 | E21: Elephant films | F21: 288 | H21: André Waksman | I21: 149
B22: Fox Pathé Europa | C22: 234 | E22: École internationale de création audiovisuelle et de réalisation | F22: 228 | H22: ESC éditions | I22: 142
B23: Total | C23: =SUM(C13:C22) -> 5168 | E23: Total | F23: =SUM(F13:F22) -> 6345 | H23: Total | I23: =SUM(I13:I22) -> 3056
A24: Source : Entrées dépôt légal
A26: Nombre de déposants de monographies par département et région déposant - Vidéogrammes
A27: Départements | B27: 2016 | C27: 2017 | D27: 2018 | F27: Régions | G27: 2016 | H27: 2017 | I27: 2018
A28: Ain | B28: 1 | C28: 1 | D28: 1 | F28: Auvergne - Rhône Alpes | G28: 34 | H28: 21 | I28: =D28+D30+D33+D42+D54+D66+D69+D78+D82+D107+D111+D114 -> 16 | J28: Ain, Allier, Ardèche, Cantal, Drôme, Haute-Loire, Haute-Savoie, Isère, Loire, Puy-de-Dôme, Rhône, Savoie
A29: Aisne | B29: 0 | C29: 0 | D29: 0 | F29: Bourgogne - Franche-Comté | G29: 9 | H29: 8 | I29: =D48+D53+D68+D79+D98+D112+D121+D129 -> 7 | J29: Côte d'Or, Doubs, Haute-Saône, Jura, Nièvre, Saône-et-Loire, Territoire de Belfort, Yonne
A30: Allier | B30: 1 | C30: 1 | D30: 0 | F30: Bretagne | G30: 14 | H30: 11 | I30: =D49+D58+D75+D96 -> 10 | J30: Côte d'Armor, Finistère, Ille-et-Vilaine, Morbihan
A31: Alpes-de-Haute-Provence | B31: 1 | C31: 0 | D31: 0 | F31: Centre - Val-de-Loire | G31: 10 | H31: 9 | I31: =D45+D57+D76+D77+D84+D81 -> 7 | J31: Cher, Eure-et-Loire, Indre, Indre-et-Loire, Loiret, Loir-et-Cher
A32: Alpes-Maritimes | B32: 2 | C32: 1 | D32: 2 | F32: Corse | G32: 0 | H32: 1 | I32: =D47 -> 1
A33: Ardèche | B33: 1 | C33: 2 | D33: 0 | F33: Grand-Est | G33: 19 | H33: 12 | I33: =D34+D36+D39+D67+D64+D90+D94+D95+D97+D128 -> 5 | J33: Ardennes, Aube, Bas-Rhin, Haute-Marne, Haut-Rhin, Marne, Meurthe-et-Moselle, Meuse, Moselle, Vosges
A34: Ardennes | B34: 1 | C34: 1 | D34: 0 | F34: Hauts-de-France | G34: 7 | H34: 8 | I34: =D29+D99+D101+D105+D118 -> 2 | J34: Aisne, Nord, Oise, Pas-de-Calais, Somme
A35: Ariège | B35: 1 | C35: 1 | D35: 1 | F35: Ile-de-France | G35: 218 | H35: 168 | I35: =D55+D73+D103+D122+D115+D117+D130+D123 -> 125 | J35: Essone, Hauts-de-Seine, Paris, Seine-et-Marne, Seine-Saint-Denis, Yvelines, Val-de-Marne, Val-d'Oise
A36: Aube | B36: 0 | C36: 0 | D36: 0 | F36: Normandie | G36: 7 | H36: 3 | I36: =D41+D56+D89+D116+D102 -> 5 | J36: Calvados, Eure, Manche, Orne, Seine-Maritime
A37: Aude | B37: 2 | C37: 6 | D37: 1 | F37: Nouvelle-Aquitaine | G37: 23 | H37: 13 | I37: =D43+D44+D46+D50+D51+D52+D61+D70+D80+D86+D127+D108 -> 9 | J37: Charente, Charente-Maritime, Corrèze, Creuse, Deux-Sèvres, Dordogne, Gironde, Haute-Vienne, Landes, Lot-et-Garonne, Pyrénées-Atlantiques, Vienne
A38: Aveyron | B38: 1 | C38: 0 | D38: 2 | F38: Occitanie | G38: 18 | H38: 17 | I38: =D35+D37+D38+D59+D60+D65+D72+D74+D85+D87+D109+D119+D120 -> 14 | J38: Ariège, Aude, Aveyron, Gard, Gers, Haute-Garonne, Hautes-Pyrénées, Hérault, Lot, Lozère, Pyrénées-Orientales, Tarn, Tarn-et-Garonne
A39: Bas-Rhin | B39: 5 | C39: 4 | D39: 3 | F39: Outre-mer | G39: 1 | H39: 2 | I39: =D62+D63+D91+D93+D100+D106+D110 -> 3 | J39: Guadeloupe, Guyane, Martinique, Mayotte, Nouvelle-Calédonie, Polynésie française, Réunion, Saint-Pierre-et-Miquelon
A40: Bouches-du-Rhône | B40: 12 | C40: 5 | D40: 3 | F40: Pays de la Loire | G40: 8 | H40: 11 | I40: =D83+D88+D92+D113+D126 -> 5 | J40: Loire-Atlantique, Maine-et-Loire, Mayenne, Sarthe, Vendée
A41: Calvados | B41: 3 | C41: 1 | D41: 1 | F41: Provence-Alpes-Côte d'Azur | G41: 19 | H41: 10 | I41: =D31+D32+D40+D71+D124+D125 -> 6 | J41: Alpes-de-Haute-Provence, Alpes-Maritimes, Bouches-du-Rhône, Hautes-Alpes, Var, Vaucluse
A42: Cantal | B42: 0 | C42: 0 | D42: 0 | F42: pas de département spécifié | G42: 8 | H42: 5 | I42: =D104 -> 6
A43: Charente | B43: 1 | C43: 0 | D43: 0 | F43: Total | G43: 395 | H43: 299 | I43: =SUM(I28:I42) -> 221
A44: Charente-Maritime | B44: 2 | C44: 3 | D44: 1
A45: Cher | B45: 2 | C45: 0 | D45: 0
A46: Corrèze | B46: 1 | C46: 0 | D46: 0
A47: Corse | B47: 0 | C47: 1 | D47: 1
A48: Côte-d'Or | B48: 2 | C48: 1 | D48: 1
A49: Côtes-d'Armor | B49: 2 | C49: 0 | D49: 1
A50: Creuse | B50: 0 | C50: 0 | D50: 0
A51: Deux-Sèvres | B51: 1 | C51: 1 | D51: 1
A52: Dordogne | B52: 2 | C52: 2 | D52: 1
A53: Doubs | B53: 3 | C53: 2 | D53: 3
A54: Drôme | B54: 2 | C54: 2 | D54: 1
A55: Essonne | B55: 3 | C55: 1 | D55: 2
A56: Eure | B56: 0 | C56: 1 | D56: 1
A57: Eure-et-Loir | B57: 1 | C57: 3 | D57: 3
A58: Finistère | B58: 4 | C58: 3 | D58: 1
A59: Gard | B59: 0 | C59: 0 | D59: 1
A60: Gers | B60: 0 | C60: 1 | D60: 1
A61: Gironde | B61: 5 | C61: 1 | D61: 2
A62: Guadeloupe | B62: 0 | C62: 0 | D62: 0
A63: Guyane | B63: 0 | C63: 0 | D63: 0
A64: Haut-Rhin | B64: 2 | C64: 0 | D64: 0
A65: Haute-Garonne | B65: 3 | C65: 3 | D65: 1
A66: Haute-Loire | B66: 0 | C66: 0 | D66: 0
A67: Haute-Marne | B67: 0 | C67: 1 | D67: 0
A68: Haute-Saône | B68: 0 | C68: 0 | D68: 0
A69: Haute-Savoie | B69: 4 | C69: 1 | D69: 1
A70: Haute-Vienne | B70: 0 | C70: 0 | D70: 0
A71: Hautes-Alpes | B71: 0 | C71: 0 | D71: 0
A72: Hautes-Pyrénées | B72: 1 | C72: 1 | D72: 0
A73: Hauts-de-Seine | B73: 29 | C73: 19 | D73: 15
A74: Hérault | B74: 5 | C74: 3 | D74: 4
A75: Ille-et-Vilaine | B75: 6 | C75: 7 | D75: 6
A76: Indre | B76: 0 | C76: 2 | D76: 0
A77: Indre-et-Loire | B77: 3 | C77: 0 | D77: 2
A78: Isère | B78: 9 | C78: 6 | D78: 5
A79: Jura | B79: 0 | C79: 1 | D79: 0
A80: Landes | B80: 0 | C80: 0 | D80: 0
A81: Loir-et-Cher | B81: 0 | C81: 1 | D81: 1
A82: Loire | B82: 1 | C82: 0 | D82: 1
A83: Loire-Atlantique | B83: 4 | C83: 6 | D83: 1
A84: Loiret | B84: 4 | C84: 3 | D84: 1
A85: Lot | B85: 0 | C85: 0 | D85: 1
A86: Lot-et-Garonne | B86: 3 | C86: 4 | D86: 1
A87: Lozère | B87: 0 | C87: 0 | D87: 0
A88: Maine-et-Loire | B88: 0 | C88: 1 | D88: 1
A89: Manche | B89: 0 | C89: 0 | D89: 0
A90: Marne | B90: 5 | C90: 1 | D90: 1
A91: Martinique | B91: 0 | C91: 0 | D91: 0
A92: Mayenne | B92: 1 | C92: 0 | D92: 0
A93: Mayotte | B93: 0 | C93: 0 | D93: 0
A94: Meurthe-et-Moselle | B94: 1 | C94: 2 | D94: 0
A95: Meuse | B95: 2 | C95: 0 | D95: 0
A96: Morbihan | B96: 2 | C96: 1 | D96: 2
A97: Moselle | B97: 2 | C97: 1 | D97: 0
A98: Nièvre | B98: 0 | C98: 1 | D98: 2
A99: Nord | B99: 6 | C99: 3 | D99: 2
A100: Nouvelle-Calédonie | B100: 0 | C100: 0 | D100: 1
A101: Oise | B101: 0 | C101: 2 | D101: 0
A102: Orne | B102: 0 | C102: 0 | D102: 2
A103: Paris | B103: 151 | C103: 123 | D103: 93
A104: pas de département | B104: 8 | C104: 5 | D104: 6
A105: Pas-de-Calais | B105: 0 | C105: 2 | D105: 0
A106: Polynésie Française | B106: 0 | C106: 0 | D106: 0
A107: Puy-de-Dôme | B107: 0 | C107: 0 | D107: 1
A108: Pyrénées-Atlantiques | B108: 4 | C108: 1 | D108: 1
A109: Pyrénées-Orientales | B109: 2 | C109: 1 | D109: 0
A110: Réunion | B110: 1 | C110: 2 | D110: 2
A111: Rhône | B111: 15 | C111: 6 | D111: 6
A112: Saône-et-Loire | B112: 3 | C112: 2 | D112: 0
A113: Sarthe | B113: 2 | C113: 2 | D113: 2
A114: Savoie | B114: 0 | C114: 2 | D114: 0
A115: Seine-et-Marne | B115: 2 | C115: 2 | D115: 0
A116: Seine-Maritime | B116: 4 | C116: 1 | D116: 1
A117: Seine-Saint-Denis | B117: 17 | C117: 13 | D117: 9
A118: Somme | B118: 1 | C118: 1 | D118: 0
A119: Tarn | B119: 2 | C119: 0 | D119: 2
A120: Tarn-et-Garonne | B120: 1 | C120: 1 | D120: 0
A121: Territoire de Belfort | B121: 0 | C121: 0 | D121: 0
A122: Val-d'Oise | B122: 3 | C122: 0 | D122: 0
A123: Val-de-Marne | B123: 8 | C123: 10 | D123: 4
A124: Var | B124: 3 | C124: 4 | D124: 1
A125: Vaucluse | B125: 1 | C125: 0 | D125: 0
A126: Vendée | B126: 1 | C126: 2 | D126: 1
A127: Vienne | B127: 4 | C127: 1 | D127: 2
A128: Vosges | B128: 1 | C128: 2 | D128: 1
A129: Yonne | B129: 1 | C129: 1 | D129: 1
A130: Yvelines | B130: 5 | C130: 0 | D130: 2
A131: Total | B131: =SUM(B28:B130) -> 395 | C131: =SUM(C28:C130) -> 299 | D131: =SUM(D28:D130) -> 221
A132: Source : Entrées dépôt légal
A134: Nombre de dépôts de monographies par département et région déposant - Vidéogrammes
A135: Départements | B135: 2016 | C135: 2017 | D135: 2018 | F135: Régions | G135: 2016 | H135: 2017 | I135: 2018
A136: Ain | B136: 1 | C136: 1 | D136: 2 | F136: Auvergne - Rhône Alpes | G136: 178 | H136: 109 | I136: =D136+D138+D141+D150+D162+D174+D177+D186+D190+D215+D219+D222 -> 40 | J136: Ain, Allier, Ardèche, Cantal, Drôme, Haute-Loire, Haute-Savoie, Isère, Loire, Puy-de-Dôme, Rhône, Savoie
A137: Aisne | B137: 0 | C137: 0 | D137: 0 | F137: Bourgogne - Franche-Comté | G137: 1237 | H137: 586 | I137: =D156+D161+D176+D187+D206+D220+D229+D237 -> 8 | J137: Côte d'Or, Doubs, Haute-Saône, Jura, Nièvre, Saône-et-Loire, Territoire de Belfort, Yonne
A138: Allier | B138: 7 | C138: 1 | D138: 0 | F138: Bretagne | G138: 60 | H138: 43 | I138: =D157+D166+D183+D204 -> 28 | J138: Côte d'Armor, Finistère, Ille-et-Vilaine, Morbihan
A139: Alpes-de-Haute-Provence | B139: 1 | C139: 0 | D139: 0 | F139: Centre - Val-de-Loire | G139: 1002 | H139: 117 | I139: =D153+D165+D184+D185+D192+D189 -> 45 | J139: Cher, Eure-et-Loire, Indre, Indre-et-Loire, Loiret, Loir-et-Cher
A140: Alpes-Maritimes | B140: 2 | C140: 3 | D140: 37 | F140: Corse | G140: 0 | H140: 1 | I140: =D155 -> 1
A141: Ardèche | B141: 17 | C141: 20 | D141: 0 | F141: Grand-Est | G141: 88 | H141: 33 | I141: =D142+D144+D147+D175+D172+D198+D202+D203+D205+D236 -> 15 | J141: Ardennes, Aube, Bas-Rhin, Haute-Marne, Haut-Rhin, Marne, Meurthe-et-Moselle, Meuse, Moselle, Vosges
A142: Ardennes | B142: 1 | C142: 2 | D142: 0 | F142: Hauts-de-France | G142: 212 | H142: 35 | I142: =D137+D207+D209+D213+D226 -> 685 | J142: Aisne, Nord, Oise, Pas-de-Calais, Somme
A143: Ariège | B143: 1 | C143: 1 | D143: 1 | F143: Ile-de-France | G143: 6802 | H143: 8727 | I143: =D163+D181+D211+D230+D223+D225+D238+D231 -> 4472 | J143: Essone, Hauts-de-Seine, Paris, Seine-et-Marne, Seine-Saint-Denis, Yvelines, Val-de-Marne, Val-d'Oise
A144: Aube | B144: 0 | C144: 0 | D144: 0 | F144: Normandie | G144: 11 | H144: 70 | I144: =D149+D164+D197+D224+D210 -> 105 | J144: Calvados, Eure, Manche, Orne, Seine-Maritime
A145: Aude | B145: 22 | C145: 11 | D145: 1 | F145: Nouvelle-Aquitaine | G145: 236 | H145: 335 | I145: =D151+D152+D154+D158+D159+D160+D169+D178+D188+D194+D235+D216 -> 186 | J145: Charente, Charente-Maritime, Corrèze, Creuse, Deux-Sèvres, Dordogne, Gironde, Haute-Vienne, Landes, Lot-et-Garonne, Pyrénées-Atlantiques, Vienne
A146: Aveyron | B146: 1 | C146: 0 | D146: 2 | F146: Occitanie | G146: 67 | H146: 70 | I146: =D143+D145+D146+D167+D168+D173+D180+D182+D193+D195+D217+D227+D228 -> 69 | J146: Ariège, Aude, Aveyron, Gard, Gers, Haute-Garonne, Hautes-Pyrénées, Hérault, Lot, Lozère, Pyrénées-Orientales, Tarn, Tarn-et-Garonne
A147: Bas-Rhin | B147: 24 | C147: 12 | D147: 11 | F147: Outre-mer | G147: 1 | H147: 3 | I147: =D170+D171+D199+D201+D208+D214+D218 -> 6 | J147: Guadeloupe, Guyane, Martinique, Mayotte, Nouvelle-Calédonie, Polynésie française, Réunion, Saint-Pierre-et-Miquelon
A148: Bouches-du-Rhône | B148: 66 | C148: 9 | D148: 5 | F148: Pays de la Loire | G148: 26 | H148: 43 | I148: =D191+D196+D200+D221+D234 -> 5 | J148: Loire-Atlantique, Maine-et-Loire, Mayenne, Sarthe, Vendée
A149: Calvados | B149: 4 | C149: 1 | D149: 1 | F149: Provence-Alpes-Côte d'Azur | G149: 73 | H149: 16 | I149: =D139+D140+D148+D179+D232+D233 -> 43 | J149: Alpes-de-Haute-Provence, Alpes-Maritimes, Bouches-du-Rhône, Hautes-Alpes, Var, Vaucluse
A150: Cantal | B150: 0 | C150: 0 | D150: 0 | F150: pas de département spécifié | G150: 80 | H150: 42 | I150: =D212 -> 62
A151: Charente | B151: 1 | C151: 0 | D151: 0 | F151: Total | G151: 10073 | H151: 10230 | I151: =SUM(I136:I150) -> 5770
A152: Charente-Maritime | B152: 25 | C152: 58 | D152: 1
A153: Cher | B153: 3 | C153: 0 | D153: 0
A154: Corrèze | B154: 1 | C154: 0 | D154: 0
A155: Corse | B155: 0 | C155: 1 | D155: 1
A156: Côte-d'Or | B156: 4 | C156: 10 | D156: 2
A157: Côtes-d'Armor | B157: 9 | C157: 0 | D157: 1
A158: Creuse | B158: 0 | C158: 0 | D158: 0
A159: Deux-Sèvres | B159: 165 | C159: 43 | D159: 119
A160: Dordogne | B160: 6 | C160: 3 | D160: 1
A161: Doubs | B161: 1227 | C161: 571 | D161: 3
A162: Drôme | B162: 24 | C162: 3 | D162: 5
A163: Essonne | B163: 3 | C163: 6 | D163: 14
A164: Eure | B164: 0 | C164: 68 | D164: 23
A165: Eure-et-Loir | B165: 30 | C165: 109 | D165: 36
A166: Finistère | B166: 17 | C166: 4 | D166: 2
A167: Gard | B167: 0 | C167: 0 | D167: 1
A168: Gers | B168: 0 | C168: 3 | D168: 1
A169: Gironde | B169: 8 | C169: 36 | D169: 60
A170: Guadeloupe | B170: 0 | C170: 0 | D170: 0
A171: Guyane | B171: 0 | C171: 0 | D171: 0
A172: Haut-Rhin | B172: 2 | C172: 0 | D172: 0
A173: Haute-Garonne | B173: 6 | C173: 3 | D173: 1
A174: Haute-Loire | B174: 0 | C174: 0 | D174: 0
A175: Haute-Marne | B175: 0 | C175: 2 | D175: 0
A176: Haute-Saône | B176: 0 | C176: 0 | D176: 0
A177: Haute-Savoie | B177: 8 | C177: 2 | D177: 1
A178: Haute-Vienne | B178: 0 | C178: 0 | D178: 0
A179: Hautes-Alpes | B179: 0 | C179: 0 | D179: 0
A180: Hautes-Pyrénées | B180: 7 | C180: 1 | D180: 0
A181: Hauts-de-Seine | B181: 1659 | C181: 1185 | D181: 655
A182: Hérault | B182: 22 | C182: 48 | D182: 54
A183: Ille-et-Vilaine | B183: 11 | C183: 20 | D183: 12
A184: Indre | B184: 0 | C184: 2 | D184: 0
A185: Indre-et-Loire | B185: 9 | C185: 0 | D185: 5
A186: Isère | B186: 24 | C186: 12 | D186: 10
A187: Jura | B187: 0 | C187: 1 | D187: 0
A188: Landes | B188: 0 | C188: 0 | D188: 0
A189: Loir-et-Cher | B189: 0 | C189: 1 | D189: 2
A190: Loire | B190: 1 | C190: 0 | D190: 8
A191: Loire-Atlantique | B191: 6 | C191: 12 | D191: 1
A192: Loiret | B192: 960 | C192: 5 | D192: 2
A193: Lot | B193: 0 | C193: 0 | D193: 1
A194: Lot-et-Garonne | B194: 3 | C194: 154 | D194: 1
A195: Lozère | B195: 0 | C195: 0 | D195: 0
A196: Maine-et-Loire | B196: 0 | C196: 1 | D196: 1
A197: Manche | B197: 0 | C197: 0 | D197: 0
A198: Marne | B198: 9 | C198: 1 | D198: 3
A199: Martinique | B199: 0 | C199: 0 | D199: 0
A200: Mayenne | B200: 1 | C200: 0 | D200: 0
A201: Mayotte | B201: 0 | C201: 0 | D201: 0
A202: Meurthe-et-Moselle | B202: 37 | C202: 7 | D202: 0
A203: Meuse | B203: 2 | C203: 0 | D203: 0
... 94 more rows

Sheet Multisupports
A1: Nombre de dépôts et déposants de monographies, répartis selon le nombre de dépôts annuels par déposant – Multimédias multisupports
A2: Multimédias multisupports | B2: 2016 | D2: 2017 | F2: 2018
A3: Tranches | B3: Dépôts | C3: Déposants | D3: Dépôts | E3: Déposants | F3: Dépôts | G3: Déposants
A4: Plus de 50 | B4: 0 | C4: 0 | D4: 0 | E4: 0 | F4: 0 | G4: 0
A5: 10 à 49 | B5: 515 | C5: 27 | D5: 446 | E5: 25 | F5: 307 | G5: 16
A6: 2 à 9 | B6: 410 | C6: 119 | D6: 381 | E6: 113 | F6: 336 | G6: 97
A7: 1 | B7: 273 | C7: 273 | D7: 218 | E7: 218 | F7: 174 | G7: 174
A8: Total | B8: =SUM(B4:B7) -> 1198 | C8: 419 | D8: 1045 | E8: 356 | F8: =SUM(F4:F7) -> 817 | G8: =SUM(G4:G7) -> 287
A9: Source : Entrées dépôt légal
A11: Liste des 10 principaux déposants de monographies par année de dépôt - Multimédias multisupports
B12: Déposant | C12: 2016 | E12: Déposant | F12: 2017 | H12: Déposant | I12: 2018
B13: Editions Entrefilet | C13: 42 | E13: SODIS - MAISON DES LANGUES - DIFUSION - KLETT | F13: 40 | H13: POLYGRAM COLLECTIONS | I13: 47
B14: Sodis - Maison des Langues - Klett | C14: 31 | E14: HACHETTE EDUCATION | F14: 35 | H14: RETZ (EDITIONS) | I14: 31
B15: Hachette éducation | C15: 30 | E15: ASSIMIL | F15: 33 | H15: RULLO Barthélémy | I15: 22
B16: Assimil | C16: 30 | E16: RETZ (EDITIONS) | F16: 28 | H16: GLENAT (EDITIONS) | I16: 21
B17: Editions Retz | C17: 29 | E17: PRESSES DE LA RENAISSANCE | F17: 22 | H17: CLE INTERNATIONAL S/C NATHAN-SEJER | I17: 21
B18: Didier jeunesse | C18: 27 | E18: SOCIETE DU FIGARO | F18: 19 | H18: SODIS - MAISON DES LANGUES - DIFUSION - KLETT | I18: 20
B19: France Loisirs | C19: 22 | E19: BORDAS | F19: 19 | H19: ASSIMIL | I19: 18
B20: Editions Didier | C20: 22 | E20: DIDIER (EDITIONS) | F20: 19 | H20: DIDIER (EDITIONS) | I20: 18
B21: Génération 5 | C21: 21 | E21: ELLEBORE (EDITIONS) | F21: 18 | H21: HATIER | I21: 16
B22: Gallimard jeunesse | C22: 20 | E22: DIDIER JEUNESSE | F22: 17 | H22: BAYARD CRER (EDITIONS) | I22: 15
B23: Total | C23: =SUM(C13:C22) -> 274 | E23: Total | F23: =SUM(F13:F22) -> 250 | I23: =SUM(I13:I22) -> 229
A24: Source : Entrées dépôt légal
A26: Nombre de déposants de monographies par département et région déposant - Multimédias multisupports
A27: Départements | B27: 2016 | C27: 2017 | D27: 2018 | F27: Régions | G27: 2016 | H27: 2017 | I27: 2018
A28: Ain | B28: 2 | C28: 3 | D28: 1 | F28: Auvergne - Rhône Alpes | G28: 35 | H28: 34 | I28: =D28+D30+D42+D54+D66+D69+D78+D82+D107+D111+D114+D33 -> 23 | J28: Ain, Allier, Ardèche, Cantal, Drôme, Haute-Loire, Haute-Savoie, Isère, Loire, Puy-de-Dôme, Rhône, Savoie
A29: Aisne | B29: 0 | C29: 2 | D29: 0 | F29: Bourgogne - Franche-Comté | G29: 16 | H29: 11 | I29: =D48+D53+D68+D79+D98+D121+D129+D112 -> 9 | J29: Côte d'Or, Doubs, Haute-Saône, Jura, Nièvre, Saône-et-Loire, Territoire de Belfort, Yonne
A30: Allier | B30: 1 | C30: 0 | D30: 2 | F30: Bretagne | G30: 19 | H30: 15 | I30: =D49+D58+D75+D96 -> 15 | J30: Côte d'Armor, Finistère, Ille-et-Vilaine, Morbihan
A31: Alpes-de-Haute-Provence | B31: 1 | C31: 2 | D31: 1 | F31: Centre - Val-de-Loire | G31: 10 | H31: 5 | I31: =D45+D57+D76+D77+D84+D81 -> 5 | J31: Cher, Eure-et-Loire, Indre, Indre-et-Loire, Loiret, Loir-et-Cher
A32: Alpes-Maritimes | B32: 1 | C32: 2 | D32: 1 | F32: Corse | G32: 3 | H32: 2 | I32: =D47 -> 2
A33: Ardèche | B33: 1 | C33: 2 | D33: 2 | F33: Grand-Est | G33: 17 | H33: 11 | I33: =D34+D36+D39+D67+D64+D94+D95+D97+D128+D90 -> 13 | J33: Ardennes, Aube, Bas-Rhin, Haute-Marne, Haut-Rhin, Marne, Meurthe-et-Moselle, Meuse, Moselle, Vosges
A34: Ardennes | B34: 0 | C34: 0 | D34: 0 | F34: Hauts-de-France | G34: 7 | H34: 6 | I34: =D99+D101+D105+D118+D29 -> 5 | J34: Aisne, Nord, Oise, Pas-de-Calais, Somme
A35: Ariège | B35: 0 | C35: 2 | D35: 1 | F35: Ile-de-France | G35: 196 | H35: 166 | I35: =D55+D73+D103+D115+D117+D122+D123+D130 -> 130 | J35: Essone, Hauts-de-Seine, Paris, Seine-et-Marne, Seine-Saint-Denis, Yvelines, Val-de-Marne, Val-d'Oise
A36: Aube | B36: 1 | C36: 0 | D36: 0 | F36: Normandie | G36: 6 | H36: 8 | I36: =D41+D56+D89+D102+D116 -> 4 | J36: Calvados, Eure, Manche, Orne, Seine-Maritime
A37: Aude | B37: 0 | C37: 2 | D37: 0 | F37: Nouvelle-Aquitaine | G37: 38 | H37: 30 | I37: =D43+D44+D46+D50+D51+D52+D61+D70+D80+D86+D108+D127 -> 28 | J37: Charente, Charente-Maritime, Corrèze, Creuse, Deux-Sèvres, Dordogne, Gironde, Haute-Vienne, Landes, Lot-et-Garonne, Pyrénées-Atlantiques, Vienne
A38: Aveyron | B38: 1 | C38: 1 | D38: 1 | F38: Occitanie | G38: 23 | H38: 29 | I38: =D35+D37+D38+D59+D60+D65+D72+D74+D85+D87+D109+D119+D120 -> 26 | J38: Ariège, Aude, Aveyron, Gard, Gers, Haute-Garonne, Hautes-Pyrénées, Hérault, Lot, Lozère, Pyrénées-Orientales, Tarn, Tarn-et-Garonne
A39: Bas-Rhin | B39: 6 | C39: 3 | D39: 6 | F39: Outre-mer | G39: 8 | H39: 6 | I39: =D62+D63+D91+D93+D100+D106+D110 -> 5 | J39: Guadeloupe, Guyane, Martinique, Mayotte, Nouvelle-Calédonie, Polynésie française, Réunion, Saint-Pierre-et-Miquelon
A40: Bouches-du-Rhône | B40: 10 | C40: 8 | D40: 7 | F40: Pays de la Loire | G40: 12 | H40: 8 | I40: =D83+D88+D92+D113+D126 -> 6 | J40: Loire-Atlantique, Maine-et-Loire, Mayenne, Sarthe, Vendée
A41: Calvados | B41: 3 | C41: 2 | D41: 1 | F41: Provence-Alpes-Côte d'Azur | G41: 20 | H41: 18 | I41: =D31+D32+D40+D71+D124+D125 -> 13 | J41: Alpes-de-Haute-Provence, Alpes-Maritimes, Bouches-du-Rhône, Hautes-Alpes, Var, Vaucluse
A42: Cantal | B42: 2 | C42: 4 | D42: 2 | F42: pas de département spécifié | G42: 9 | H42: 7 | I42: =D104 -> 3
A43: Charente | B43: 0 | C43: 1 | D43: 3 | F43: Total | G43: 419 | H43: 356 | I43: =SUM(I28:I42) -> 287
A44: Charente-Maritime | B44: 3 | C44: 3 | D44: 3
A45: Cher | B45: 0 | C45: 1 | D45: 2
A46: Corrèze | B46: 1 | C46: 1 | D46: 1
A47: Corse | B47: 3 | C47: 2 | D47: 2
A48: Côte-d'Or | B48: 4 | C48: 1 | D48: 0
A49: Côtes-d'Armor | B49: 2 | C49: 4 | D49: 3
A50: Creuse | B50: 0 | C50: 0 | D50: 1
A51: Deux-Sèvres | B51: 1 | C51: 2 | D51: 1
A52: Dordogne | B52: 5 | C52: 5 | D52: 2
A53: Doubs | B53: 4 | C53: 2 | D53: 3
A54: Drôme | B54: 2 | C54: 4 | D54: 2
A55: Essonne | B55: 6 | C55: 5 | D55: 5
A56: Eure | B56: 0 | C56: 1 | D56: 1
A57: Eure-et-Loir | B57: 1 | C57: 0 | D57: 0
A58: Finistère | B58: 6 | C58: 4 | D58: 5
A59: Gard | B59: 4 | C59: 0 | D59: 1
A60: Gers | B60: 0 | C60: 0 | D60: 1
A61: Gironde | B61: 10 | C61: 7 | D61: 4
A62: Guadeloupe | B62: 1 | C62: 2 | D62: 1
A63: Guyane | B63: 0 | C63: 0 | D63: 0
A64: Haut-Rhin | B64: 3 | C64: 3 | D64: 3
A65: Haute-Garonne | B65: 4 | C65: 9 | D65: 9
A66: Haute-Loire | B66: 0 | C66: 1 | D66: 0
A67: Haute-Marne | B67: 0 | C67: 0 | D67: 0
A68: Haute-Saône | B68: 0 | C68: 1 | D68: 0
A69: Haute-Savoie | B69: 4 | C69: 4 | D69: 2
A70: Haute-Vienne | B70: 3 | C70: 0 | D70: 2
A71: Hautes-Alpes | B71: 1 | C71: 0 | D71: 0
A72: Hautes-Pyrénées | B72: 1 | C72: 1 | D72: 0
A73: Hauts-de-Seine | B73: 19 | C73: 17 | D73: 15
A74: Hérault | B74: 4 | C74: 2 | D74: 5
A75: Ille-et-Vilaine | B75: 8 | C75: 6 | D75: 3
A76: Indre | B76: 2 | C76: 0 | D76: 0
A77: Indre-et-Loire | B77: 4 | C77: 3 | D77: 0
A78: Isère | B78: 5 | C78: 5 | D78: 2
A79: Jura | B79: 2 | C79: 1 | D79: 0
A80: Landes | B80: 5 | C80: 3 | D80: 2
A81: Loir-et-Cher | B81: 0 | C81: 1 | D81: 0
A82: Loire | B82: 3 | C82: 2 | D82: 1
A83: Loire-Atlantique | B83: 4 | C83: 4 | D83: 2
A84: Loiret | B84: 3 | C84: 0 | D84: 3
A85: Lot | B85: 0 | C85: 2 | D85: 2
A86: Lot-et-Garonne | B86: 0 | C86: 0 | D86: 1
A87: Lozère | B87: 0 | C87: 0 | D87: 1
A88: Maine-et-Loire | B88: 4 | C88: 1 | D88: 3
A89: Manche | B89: 0 | C89: 1 | D89: 0
A90: Marne | B90: 1 | C90: 1 | D90: 2
A91: Martinique | B91: 1 | C91: 1 | D91: 2
A92: Mayenne | B92: 2 | C92: 1 | D92: 0
A93: Mayotte | B93: 0 | C93: 0 | D93: 0
A94: Meurthe-et-Moselle | B94: 4 | C94: 2 | D94: 0
A95: Meuse | B95: 1 | C95: 1 | D95: 0
A96: Morbihan | B96: 3 | C96: 1 | D96: 4
A97: Moselle | B97: 1 | C97: 1 | D97: 0
A98: Nièvre | B98: 1 | C98: 0 | D98: 0
A99: Nord | B99: 4 | C99: 3 | D99: 3
A100: Nouvelle-Calédonie | B100: 2 | C100: 0 | D100: 0
A101: Oise | B101: 1 | C101: 0 | D101: 1
A102: Orne | B102: 0 | C102: 0 | D102: 0
A103: Paris | B103: 143 | C103: 120 | D103: 89
A104: pas de département | B104: 9 | C104: 7 | D104: 3
A105: Pas-de-Calais | B105: 0 | C105: 0 | D105: 1
A106: Polynésie française | B106: 0 | C106: 0 | D106: 0
A107: Puy-de-Dôme | B107: 5 | C107: 0 | D107: 2
A108: Pyrénées-Atlantiques | B108: 2 | C108: 2 | D108: 3
A109: Pyrénées-Orientales | B109: 4 | C109: 3 | D109: 1
A110: Réunion | B110: 4 | C110: 3 | D110: 2
A111: Rhône | B111: 9 | C111: 6 | D111: 6
A112: Saône-et-Loire | B112: 3 | C112: 3 | D112: 6
A113: Sarthe | B113: 0 | C113: 1 | D113: 0
A114: Savoie | B114: 1 | C114: 3 | D114: 1
A115: Seine-et-Marne | B115: 3 | C115: 5 | D115: 5
A116: Seine-Maritime | B116: 3 | C116: 4 | D116: 2
A117: Seine-Saint-Denis | B117: 7 | C117: 6 | D117: 2
A118: Somme | B118: 2 | C118: 1 | D118: 0
A119: Tarn | B119: 5 | C119: 6 | D119: 3
A120: Tarn-et-Garonne | B120: 0 | C120: 1 | D120: 1
A121: Territoire de Belfort | B121: 1 | C121: 2 | D121: 0
A122: Val-d'Oise | B122: 1 | C122: 1 | D122: 1
A123: Val-de-Marne | B123: 11 | C123: 9 | D123: 8
A124: Var | B124: 5 | C124: 4 | D124: 3
A125: Vaucluse | B125: 2 | C125: 2 | D125: 1
A126: Vendée | B126: 2 | C126: 1 | D126: 1
A127: Vienne | B127: 8 | C127: 6 | D127: 5
A128: Vosges | B128: 0 | C128: 0 | D128: 2
A129: Yonne | B129: 1 | C129: 1 | D129: 0
A130: Yvelines | B130: 6 | C130: 3 | D130: 5
A131: Total | B131: =SUM(B28:B130) -> 419 | C131: =SUM(C28:C130) -> 356 | D131: =SUM(D28:D130) -> 287
A132: Source : Entrées dépôt légal
A134: Nombre de dépôts de monographies par département et région déposant - Multimédias multisupports
A135: Départements | B135: 2016 | C135: 2017 | D135: 2018 | F135: Régions | G135: 2016 | H135: 2017 | I135: 2018
A136: Ain | B136: 2 | C136: 3 | D136: 1 | F136: Auvergne - Rhône Alpes | G136: 133 | H136: 66 | I136: =D136+D138+D150+D162+D174+D177+D186+D190+D215+D219+D222+D141 -> 58 | J136: Ain, Allier, Ardèche, Cantal, Drôme, Haute-Loire, Haute-Savoie, Isère, Loire, Puy-de-Dôme, Rhône, Savoie
A137: Aisne | B137: 0 | C137: 2 | D137: 0 | F137: Bourgogne - Franche-Comté | G137: 44 | H137: 17 | I137: =D156+D161+D176+D187+D206+D229+D237+D220 -> 20 | J137: Côte d'Or, Doubs, Haute-Saône, Jura, Nièvre, Saône-et-Loire, Territoire de Belfort, Yonne
A138: Allier | B138: 1 | C138: 0 | D138: 2 | F138: Bretagne | G138: 23 | H138: 23 | I138: =D157+D166+D183+D204 -> 18 | J138: Côte d'Armor, Finistère, Ille-et-Vilaine, Morbihan
A139: Alpes-de-Haute-Provence | B139: 1 | C139: 14 | D139: 3 | F139: Centre - Val-de-Loire | G139: 11 | H139: 7 | I139: =D153+D165+D184+D185+D192+D189 -> 5 | J139: Cher, Eure-et-Loire, Indre, Indre-et-Loire, Loiret, Loir-et-Cher
A140: Alpes-Maritimes | B140: 1 | C140: 4 | D140: 1 | F140: Corse | G140: 3 | H140: 3 | I140: =D155 -> 2
A141: Ardèche | B141: 6 | C141: 3 | D141: 3 | F141: Grand-Est | G141: 26 | H141: 23 | I141: =D142+D144+D147+D175+D172+D202+D203+D205+D236+D198 -> 48 | J141: Ardennes, Aube, Bas-Rhin, Haute-Marne, Haut-Rhin, Marne, Meurthe-et-Moselle, Meuse, Moselle, Vosges
A142: Ardennes | B142: 0 | C142: 0 | D142: 0 | F142: Hauts-de-France | G142: 9 | H142: 6 | I142: =D207+D209+D213+D226+D137 -> 10 | J142: Aisne, Nord, Oise, Pas-de-Calais, Somme
A143: Ariège | B143: 0 | C143: 2 | D143: 1 | F143: Ile-de-France | G143: 712 | H143: 669 | I143: =D163+D181+D211+D223+D225+D230+D231+D238 -> 469 | J143: Essone, Hauts-de-Seine, Paris, Seine-et-Marne, Seine-Saint-Denis, Yvelines, Val-de-Marne, Val-d'Oise
A144: Aube | B144: 1 | C144: 0 | D144: 0 | F144: Normandie | G144: 6 | H144: 9 | I144: =D149+D164+D197+D210+D224 -> 4 | J144: Calvados, Eure, Manche, Orne, Seine-Maritime
A145: Aude | B145: 0 | C145: 3 | D145: 0 | F145: Nouvelle-Aquitaine | G145: 98 | H145: 92 | I145: =D151+D152+D154+D158+D159+D160+D169+D178+D188+D194+D216+D235 -> 65 | J145: Charente, Charente-Maritime, Corrèze, Creuse, Deux-Sèvres, Dordogne, Gironde, Haute-Vienne, Landes, Lot-et-Garonne, Pyrénées-Atlantiques, Vienne
A146: Aveyron | B146: 1 | C146: 1 | D146: 1 | F146: Occitanie | G146: 52 | H146: 55 | I146: =D143+D145+D146+D167+D168+D173+D180+D182+D193+D195+D217+D227+D228 -> 58 | J146: Ariège, Aude, Aveyron, Gard, Gers, Haute-Garonne, Hautes-Pyrénées, Hérault, Lot, Lozère, Pyrénées-Orientales, Tarn, Tarn-et-Garonne
A147: Bas-Rhin | B147: 8 | C147: 8 | D147: 17 | F147: Outre-mer | G147: 9 | H147: 8 | I147: =D170+D171+D199+D201+D208+D214+D218 -> 6 | J147: Guadeloupe, Guyane, Martinique, Mayotte, Nouvelle-Calédonie, Polynésie française, Réunion, Saint-Pierre-et-Miquelon
A148: Bouches-du-Rhône | B148: 24 | C148: 9 | D148: 15 | F148: Pays de la Loire | G148: 18 | H148: 11 | I148: =D191+D196+D200+D221+D234 -> 23 | J148: Loire-Atlantique, Maine-et-Loire, Mayenne, Sarthe, Vendée
A149: Calvados | B149: 3 | C149: 2 | D149: 1 | F149: Provence-Alpes-Côte d'Azur | G149: 41 | H149: 42 | I149: =D139+D140+D148+D179+D232+D233 -> 25 | J149: Alpes-de-Haute-Provence, Alpes-Maritimes, Bouches-du-Rhône, Hautes-Alpes, Var, Vaucluse
A150: Cantal | B150: 2 | C150: 11 | D150: 2 | F150: pas de département spécifié | G150: 13 | H150: 14 | I150: =D212 -> 6
A151: Charente | B151: 0 | C151: 1 | D151: 4 | F151: Total | G151: 1198 | H151: 1045 | I151: =SUM(I136:I150) -> 817
A152: Charente-Maritime | B152: 4 | C152: 4 | D152: 3
A153: Cher | B153: 0 | C153: 1 | D153: 2
A154: Corrèze | B154: 2 | C154: 1 | D154: 1
A155: Corse | B155: 3 | C155: 3 | D155: 2
A156: Côte-d'Or | B156: 4 | C156: 2 | D156: 0
A157: Côtes-d'Armor | B157: 4 | C157: 6 | D157: 4
A158: Creuse | B158: 0 | C158: 0 | D158: 1
A159: Deux-Sèvres | B159: 1 | C159: 5 | D159: 1
A160: Dordogne | B160: 8 | C160: 5 | D160: 2
A161: Doubs | B161: 4 | C161: 2 | D161: 3
A162: Drôme | B162: 3 | C162: 9 | D162: 2
A163: Essonne | B163: 8 | C163: 25 | D163: 55
A164: Eure | B164: 0 | C164: 1 | D164: 1
A165: Eure-et-Loir | B165: 1 | C165: 0 | D165: 0
A166: Finistère | B166: 6 | C166: 7 | D166: 6
A167: Gard | B167: 7 | C167: 0 | D167: 1
A168: Gers | B168: 0 | C168: 0 | D168: 1
A169: Gironde | B169: 14 | C169: 11 | D169: 6
A170: Guadeloupe | B170: 2 | C170: 4 | D170: 2
A171: Guyane | B171: 0 | C171: 0 | D171: 0
A172: Haut-Rhin | B172: 6 | C172: 9 | D172: 24
A173: Haute-Garonne | B173: 14 | C173: 18 | D173: 29
A174: Haute-Loire | B174: 0 | C174: 1 | D174: 0
A175: Haute-Marne | B175: 0 | C175: 0 | D175: 0
A176: Haute-Saône | B176: 0 | C176: 1 | D176: 0
A177: Haute-Savoie | B177: 7 | C177: 6 | D177: 4
A178: Haute-Vienne | B178: 4 | C178: 0 | D178: 3
A179: Hautes-Alpes | B179: 1 | C179: 0 | D179: 0
A180: Hautes-Pyrénées | B180: 2 | C180: 1 | D180: 0
A181: Hauts-de-Seine | B181: 70 | C181: 56 | D181: 53
A182: Hérault | B182: 10 | C182: 14 | D182: 13
A183: Ille-et-Vilaine | B183: 9 | C183: 9 | D183: 3
A184: Indre | B184: 2 | C184: 0 | D184: 0
A185: Indre-et-Loire | B185: 4 | C185: 5 | D185: 0
A186: Isère | B186: 25 | C186: 15 | D186: 26
A187: Jura | B187: 4 | C187: 1 | D187: 0
A188: Landes | B188: 6 | C188: 3 | D188: 2
A189: Loir-et-Cher | B189: 0 | C189: 1 | D189: 0
A190: Loire | B190: 4 | C190: 2 | D190: 1
A191: Loire-Atlantique | B191: 7 | C191: 7 | D191: 4
A192: Loiret | B192: 4 | C192: 0 | D192: 3
A193: Lot | B193: 0 | C193: 2 | D193: 2
A194: Lot-et-Garonne | B194: 0 | C194: 0 | D194: 1
A195: Lozère | B195: 0 | C195: 0 | D195: 1
A196: Maine-et-Loire | B196: 6 | C196: 1 | D196: 18
A197: Manche | B197: 0 | C197: 1 | D197: 0
A198: Marne | B198: 1 | C198: 1 | D198: 2
A199: Martinique | B199: 1 | C199: 1 | D199: 2
A200: Mayenne | B200: 3 | C200: 1 | D200: 0
A201: Mayotte | B201: 0 | C201: 0 | D201: 0
A202: Meurthe-et-Moselle | B202: 8 | C202: 3 | D202: 0
A203: Meuse | B203: 1 | C203: 1 | D203: 0
... 116 more rows

Sheet Monosupport
A1: Nombre de dépôts et déposants de monographies, répartis selon le nombre de dépôts annuels par déposant – Multimédias monosupport
A2: Multimédias monosupport | B2: 2016 | D2: 2017 | F2: 2018
A3: Tranches | B3: Dépôts | C3: Déposants | D3: Dépôts | E3: Déposants | F3: Dépôts | G3: Déposants
A4: Plus de 50 | B4: 645 | C4: 6 | D4: 405 | E4: 3 | F4: 496 | G4: 3
A5: 10 à 49 | B5: 296 | C5: 14 | D5: 192 | E5: 11 | F5: 322 | G5: 16
A6: 2 à 9 | B6: 132 | C6: 32 | D6: 106 | E6: 26 | F6: 100 | G6: 26
A7: 1 | B7: 39 | C7: 39 | D7: 36 | E7: 36 | F7: 27 | G7: 27
A8: Total | B8: =SUM(B4:B7) -> 1112 | C8: 91 | D8: 739 | E8: 76 | F8: =SUM(F4:F7) -> 945 | G8: =SUM(G4:G7) -> 72
A9: Source : Entrées dépôt légal
A11: Nombre de dépôts et déposants de périodiques, répartis selon le nombre de dépôts annuels par déposant – Multimédias monosupport
A12: Multimédias monosupport | B12: 2016 | D12: 2017 | F12: 2017
A13: Tranches | B13: Dépôts | C13: Déposants | D13: Dépôts (titres) | E13: Déposants | F13: Dépôts (titres) | G13: Déposants
A14: Plus de 10 | D14: 83 | E14: 3 | F14: 80 | G14: 3
A15: 5 à 10 | D15: 6 | E15: 1 | F15: 0 | G15: 0
A16: 2 à 4 | D16: 45 | E16: 18 | F16: 30 | G16: 10
A17: 1 | B17: 41 | C17: 41 | D17: 31 | E17: 31 | F17: 29 | G17: 29
A18: Total | B18: =SUM(B14:B17) -> 41 | C18: 41 | D18: =SUM(D14:D17) -> 165 | E18: =SUM(E14:E17) -> 53 | F18: =SUM(F14:F17) -> 139 | G18: =SUM(G14:G17) -> 42
A19: Source : Entrées dépôt légal
A21: Liste des 10 principaux déposants de monographies par année de dépôt - Multimédias monosupport
B22: Déposant | C22: 2016 | E22: Déposant | F22: 2017 | H22: Déposant | I22: 2018
B23: Global Game Jam | C23: 200 | E23: Global Game Jam | F23: 261 | H23: Global Game Jam | I23: 318
B24: Ubisoft | C24: 156 | E24: EBP INFORMATIQUE | F24: 92 | H24: EBP INFORMATIQUE | I24: 118
B25: EBP Informatique | C25: 106 | E25: FOCUS HOME INTERACTIVE | F25: 52 | H25: GENERATION 5 | I25: 60
B26: Bigben interactive | C26: 76 | E26: ISART Digital | F26: 33 | H26: Hits Playtime | I26: 32
B27: Activision Blizzard | C27: 56 | E27: NAMCO BANDAI PARTNERS FRANCE | F27: 24 | H27: SONY COMPUTER ENTERTAINMENT JEUX | I27: 28
B28: Nintendo France | C28: 51 | E28: CDIP | F28: 22 | H28: BIGBEN INTERACTIVE | I28: 25
B29: CFPB | C29: 46 | E29: BETHESDA SOFTWORKS | F29: 19 | H29: NAMCO BANDAI PARTNERS FRANCE | I29: 25
B30: canardpc.com | C30: 40 | E30: SQUARE ENIX FRANCE | F30: 17 | H30: ACTIVISION BLIZZARD | I30: 25
B31: Avanquest France | C31: 28 | E31: UBISOFT | F31: 15 | H31: CANARDPC.COM | I31: 24
B32: Pierre Corbinais | C32: 27 | E32: SONY COMPUTER ENTERTAINMENT JEUX | F32: 15 | H32: FOCUS HOME INTERACTIVE | I32: 22
B33: Total | C33: =SUM(C23:C32) -> 786 | E33: Total | F33: =SUM(F23:F32) -> 550 | I33: =SUM(I23:I32) -> 677
A34: Source : Entrées dépôt légal
A36: Nombre de déposants de monographies par département et région déposant - Multimédias monosupport
A37: Départements | B37: 2016 | C37: 2017 | D37: 2018 | F37: Régions | G37: 2016 | H37: 2017 | I37: 2018
A38: Ain | B38: 0 | C38: 1 | D38: 0 | F38: Auvergne - Rhône Alpes | G38: 8 | H38: 6 | I38: =D38+D40+D43+D52+D64+D76+D79+D88+D92+D115+D119+D122 -> 4 | J38: Ain, Allier, Ardèche, Cantal, Drôme, Haute-Loire, Haute-Savoie, Isère, Loire, Puy-de-Dôme, Rhône, Savoie
A39: Aisne | B39: 0 | C39: 0 | D39: 0 | F39: Bourgogne - Franche-Comté | G39: 2 | H39: 1 | I39: =D58+D63+D78+D89+D107+D120+D129+D137 -> 1 | J39: Côte d'Or, Doubs, Haute-Saône, Jura, Nièvre, Saône-et-Loire, Territoire de Belfort, Yonne
A40: Allier | B40: 0 | C40: 0 | D40: 0 | F40: Bretagne | G40: 1 | H40: 1 | I40: =D59+D68+D85+D105 -> 1 | J40: Côte d'Armor, Finistère, Ille-et-Vilaine, Morbihan
A41: Alpes de Haute Provence | B41: 0 | C41: 0 | D41: 0 | F41: Centre - Val-de-Loire | G41: 0 | H41: 1 | I41: =D55+D67+D86+D87+D94+D91 -> 0 | J41: Cher, Eure-et-Loire, Indre, Indre-et-Loire, Loiret, Loir-et-Cher
A42: Alpes-Maritimes | B42: 0 | C42: 1 | D42: 1 | F42: Corse | G42: 0 | H42: 0 | I42: =D57 -> 0
A43: Ardèche | B43: 0 | C43: 0 | D43: 0 | F43: Grand-Est | G43: 6 | H43: 2 | I43: =D44+D46+D49+D77+D74+D100+D103+D104+D106+D136 -> 2 | J43: Ardennes, Aube, Bas-Rhin, Haute-Marne, Haut-Rhin, Marne, Meurthe-et-Moselle, Meuse, Moselle, Vosges
A44: Ardennes | B44: 0 | C44: 0 | D44: 0 | F44: Hauts-de-France | G44: 2 | H44: 5 | I44: =D39+D108+D110+D114+D126 -> 4 | J44: Aisne, Nord, Oise, Pas-de-Calais, Somme
A45: Ariège | B45: 0 | C45: 0 | D45: 0 | F45: Ile-de-France | G45: 48 | H45: 39 | I45: =D65+D83+D112+D123+D125+D138+D130+D131 -> 37 | J45: Essone, Hauts-de-Seine, Paris, Seine-et-Marne, Seine-Saint-Denis, Val-de-Marne, Val-d'Oise, Yvelines
A46: Aube | B46: 0 | C46: 0 | D46: 0 | F46: Normandie | G46: 1 | H46: 3 | I46: =D51+D66+D99+D111+D124 -> 1 | J46: Calvados, Eure, Manche, Orne, Seine-Maritime
A47: Aude | B47: 0 | C47: 0 | D47: 0 | F47: Nouvelle-Aquitaine | G47: 4 | H47: 2 | I47: =D53+D54+D56+D60+D61+D62+D71+D80+D90+D96+D116+D135 -> 5 | J47: Charente, Charente-Maritime, Corrèze, Creuse, Deux-Sèvres, Dordogne, Gironde, Haute-Vienne, Landes, Lot-et-Garonne, Pyrénées-Atlantiques, Vienne
A48: Aveyron | B48: 0 | C48: 0 | D48: 0 | F48: Occitanie | G48: 3 | H48: 3 | I48: =D45+D47+D48+D69+D70+D84+D95+D97+D75+D117+D127+D128+D82 -> 4 | J48: Ariège, Aude, Aveyron, Gard, Gers, Haute-Garonne, Hautes-Pyrénées, Hérault, Lot, Lozère, Pyrénées-Orientales, Tarn, Tarn-et-Garonne
A49: Bas-Rhin | B49: 2 | C49: 0 | D49: 1 | F49: Outre-mer | G49: 1 | H49: 1 | I49: =D72+D73+D101+D109+D118 -> 0 | J49: Guadeloupe, Guyane, Martinique, Mayotte, Nouvelle-Calédonie, Polynésie française, Réunion, Saint-Pierre-et-Miquelon
A50: Bouches-du-Rhône | B50: 3 | C50: 6 | D50: 3 | F50: Pays de la Loire | G50: 2 | H50: 2 | I50: =D93+D98+D102+D121+D134 -> 4 | J50: Loire-Atlantique, Maine-et-Loire, Mayenne, Sarthe, Vendée
A51: Calvados | B51: 0 | C51: 1 | D51: 0 | F51: Provence-Alpes-Côte d'Azur | G51: 5 | H51: 7 | I51: =D41+D42+D50+D81+D132+D133 -> 4 | J51: Alpes-de-Haute-Provence, Alpes-Maritimes, Bouches-du-Rhône, Hautes-Alpes, Var, Vaucluse
A52: Cantal | B52: 0 | C52: 0 | D52: 0 | F52: pas de département spécifié | G52: 8 | H52: 3 | I52: =D113 -> 5
A53: Charente | B53: 0 | C53: 0 | D53: 0 | F53: Total | G53: 91 | H53: 76 | I53: =SUM(I38:I52) -> 72
A54: Charente-Maritime | B54: 0 | C54: 1 | D54: 1
A55: Cher | B55: 0 | C55: 0 | D55: 0
A56: Corrèze | B56: 0 | C56: 0 | D56: 0
A57: Corse | B57: 0 | C57: 0 | D57: 0
A58: Cote d'Or | B58: 2 | C58: 1 | D58: 1
A59: Côtes-d'Armor | B59: 0 | C59: 0 | D59: 0
A60: Creuse | B60: 0 | C60: 0 | D60: 0
A61: Deux-Sèvres | B61: 0 | C61: 0 | D61: 0
A62: Dordogne | B62: 0 | C62: 0 | D62: 0
A63: Doubs | B63: 0 | C63: 0 | D63: 0
A64: Drome | B64: 0 | C64: 0 | D64: 0
A65: Essonne | B65: 0 | C65: 0 | D65: 0
A66: Eure | B66: 0 | C66: 1 | D66: 1
A67: Eure-et-Loire | B67: 0 | C67: 0 | D67: 0
A68: Finistère | B68: 0 | C68: 0 | D68: 0
A69: Gard | B69: 0 | C69: 0 | D69: 0
A70: Gers | B70: 0 | C70: 1 | D70: 1
A71: Gironde | B71: 3 | C71: 1 | D71: 2
A72: Guadeloupe | B72: 1 | C72: 0 | D72: 0
A73: Guyane | B73: 0 | C73: 0 | D73: 0
A74: Haut-Rhin | B74: 0 | C74: 0 | D74: 0
A75: Haute-Garonne | B75: 0 | C75: 1 | D75: 0
A76: Haute-Loire | B76: 0 | C76: 0 | D76: 0
A77: Haute-Marne | B77: 0 | C77: 0 | D77: 0
A78: Haute-Saône | B78: 0 | C78: 0 | D78: 0
A79: Haute-Savoie | B79: 0 | C79: 0 | D79: 0
A80: Haute-Vienne | B80: 0 | C80: 0 | D80: 0
A81: Hautes-Alpes | B81: 0 | C81: 0 | D81: 0
A82: Hautes-Pyrénées | B82: 0 | C82: 0 | D82: 0
A83: Hauts-de-Seine | B83: 11 | C83: 5 | D83: 9
A84: Hérault | B84: 2 | C84: 1 | D84: 2
A85: Ille-et-Vilaine | B85: 0 | C85: 1 | D85: 1
A86: Indre | B86: 0 | C86: 0 | D86: 0
A87: Indre-et-Loire | B87: 0 | C87: 0 | D87: 0
A88: Isère | B88: 0 | C88: 1 | D88: 0
A89: Jura | B89: 0 | C89: 0 | D89: 0
A90: Landes | B90: 0 | C90: 0 | D90: 0
A91: Loir-et-Cher | B91: 0 | C91: 1 | D91: 0
A92: Loire | B92: 1 | C92: 1 | D92: 1
A93: Loire-Atlantique | B93: 0 | C93: 1 | D93: 0
A94: Loiret | B94: 0 | C94: 0 | D94: 0
A95: Lot | B95: 0 | C95: 0 | D95: 0
A96: Lot-et-Garonne | B96: 0 | C96: 0 | D96: 0
A97: Lozère | B97: 0 | C97: 0 | D97: 0
A98: Maine-et-Loire | B98: 0 | C98: 0 | D98: 1
A99: Manche | B99: 0 | C99: 0 | D99: 0
A100: Marne | B100: 0 | C100: 0 | D100: 0
A101: Martinique | B101: 0 | C101: 0 | D101: 0
A102: Mayenne | B102: 0 | C102: 0 | D102: 0
A103: Meurthe-et-Moselle | B103: 2 | C103: 1 | D103: 1
A104: Meuse | B104: 0 | C104: 0 | D104: 0
A105: Morbihan | B105: 1 | C105: 0 | D105: 0
A106: Moselle | B106: 2 | C106: 1 | D106: 0
A107: Nièvre | B107: 0 | C107: 0 | D107: 0
A108: Nord | B108: 2 | C108: 3 | D108: 2
A109: Nouvelle-Calédonie | B109: 0 | C109: 0 | D109: 0
A110: Oise | B110: 0 | C110: 1 | D110: 0
A111: Orne | B111: 0 | C111: 0 | D111: 0
A112: Paris | B112: 25 | C112: 21 | D112: 15
A113: pas de département | B113: 8 | C113: 3 | D113: 5
A114: Pas-de-Calais | B114: 0 | C114: 1 | D114: 2
A115: Puy-de-Dôme | B115: 0 | C115: 0 | D115: 0
A116: Pyrénées-Atlantiques | B116: 0 | C116: 0 | D116: 0
A117: Pyrénées-Orientales | B117: 0 | C117: 0 | D117: 0
A118: Réunion | B118: 0 | C118: 1 | D118: 0
A119: Rhône | B119: 7 | C119: 3 | D119: 2
A120: Saône-et-Loire | B120: 0 | C120: 0 | D120: 0
A121: Sarthe | B121: 0 | C121: 0 | D121: 0
A122: Savoie | B122: 0 | C122: 0 | D122: 1
A123: Seine-et-Marne | B123: 1 | C123: 1 | D123: 0
A124: Seine-Maritime | B124: 1 | C124: 1 | D124: 0
A125: Seine-Saint-Denis | B125: 3 | C125: 6 | D125: 7
A126: Somme | B126: 0 | C126: 0 | D126: 0
A127: Tarn | B127: 1 | C127: 0 | D127: 1
A128: Tarn-et-Garonne | B128: 0 | C128: 0 | D128: 0
A129: Territoire de Belfort | B129: 0 | C129: 0 | D129: 0
A130: Val-d'Oise | B130: 2 | C130: 2 | D130: 1
A131: Val-de-Marne | B131: 3 | C131: 1 | D131: 3
A132: Var | B132: 2 | C132: 0 | D132: 0
A133: Vaucluse | B133: 0 | C133: 0 | D133: 0
A134: Vendée | B134: 2 | C134: 1 | D134: 3
A135: Vienne | B135: 1 | C135: 0 | D135: 2
A136: Vosges | B136: 0 | C136: 0 | D136: 0
A137: Yonne | B137: 0 | C137: 0 | D137: 0
A138: Yvelines | B138: 3 | C138: 3 | D138: 2
A139: Total | B139: =SUM(B38:B138) -> 91 | C139: =SUM(C38:C138) -> 76 | D139: =SUM(D38:D138) -> 72
A140: Source : Entrées dépôt légal
A142: Nombre de dépôts de monographies par département et région déposant - Multimédias monosupport
A143: Départements | B143: 2016 | C143: 2017 | D143: 2018 | F143: Régions | G143: 2016 | H143: 2017 | I143: 2018
A144: Ain | B144: 0 | C144: 1 | D144: 0 | F144: Auvergne - Rhône Alpes | G144: 47 | H144: 42 | I144: =D144+D146+D149+D158+D170+D182+D185+D194+D198+D221+D225+D228 -> 97 | J144: Ain, Allier, Ardèche, Cantal, Drôme, Haute-Loire, Haute-Savoie, Isère, Loire, Puy-de-Dôme, Rhône, Savoie
A145: Aisne | B145: 0 | C145: 0 | D145: 0 | F145: Bourgogne - Franche-Comté | G145: 9 | H145: 2 | I145: =D164+D169+D184+D195+D213+D226+D235+D243 -> 11 | J145: Côte d'Or, Doubs, Haute-Saône, Jura, Nièvre, Saône-et-Loire, Territoire de Belfort, Yonne
A146: Allier | B146: 0 | C146: 0 | D146: 0 | F146: Bretagne | G146: 1 | H146: 8 | I146: =D165+D174+D191+D211 -> 1 | J146: Côte d'Armor, Finistère, Ille-et-Vilaine, Morbihan
A147: Alpes-de-Haute-Provence | B147: 0 | C147: 0 | D147: 0 | F147: Centre - Val-de-Loire | G147: 0 | H147: 1 | I147: =D161+D173+D192+D193+D200+D197 -> 0 | J147: Cher, Eure-et-Loire, Indre, Indre-et-Loire, Loiret, Loir-et-Cher
A148: Alpes-Maritimes | B148: 0 | C148: 1 | D148: 4 | F148: Corse | G148: 0 | H148: 0 | I148: =D163 -> 0
A149: Ardèche | B149: 0 | C149: 0 | D149: 0 | F149: Grand-Est | G149: 8 | H149: 2 | I149: =D150+D152+D155+D183+D180+D206+D209+D210+D212+D242 -> 2 | J149: Ardennes, Aube, Bas-Rhin, Haute-Marne, Haut-Rhin, Marne, Meurthe-et-Moselle, Meuse, Moselle, Vosges
A150: Ardennes | B150: 0 | C150: 0 | D150: 0 | F150: Hauts-de-France | G150: 77 | H150: 27 | I150: =D145+D214+D216+D220+D232 -> 34 | J150: Aisne, Nord, Oise, Pas-de-Calais, Somme
A151: Ariège | B151: 0 | C151: 0 | D151: 0 | F151: Ile-de-France | G151: 878 | H151: 612 | I151: =D171+D189+D218+D229+D231+D244+D236+D237 -> 741 | J151: Essone, Hauts-de-Seine, Paris, Seine-et-Marne, Seine-Saint-Denis, Yvelines, Val-de-Marne, Val-d'Oise
A152: Aube | B152: 0 | C152: 0 | D152: 0 | F152: Normandie | G152: 1 | H152: 3 | I152: =D157+D172+D205+D217+D230 -> 1 | J152: Calvados, Eure, Manche, Orne, Seine-Maritime
A153: Aude | B153: 0 | C153: 0 | D153: 0 | F153: Nouvelle-Aquitaine | G153: 7 | H153: 2 | I153: =D159+D160+D162+D166+D167+D168+D177+D186+D196+D202+D222+D241 -> 29 | J153: Charente, Charente-Maritime, Corrèze, Creuse, Deux-Sèvres, Dordogne, Gironde, Haute-Vienne, Landes, Lot-et-Garonne, Pyrénées-Atlantiques, Vienne
A154: Aveyron | B154: 0 | C154: 0 | D154: 0 | F154: Occitanie | G154: 19 | H154: 4 | I154: =D151+D153+D154+D175+D176+D190+D201+D203+D181+D223+D233+D234+D188 -> 5 | J154: Ariège, Aude, Aveyron, Gard, Gers, Haute-Garonne, Hautes-Pyrénées, Hérault, Lot, Lozère, Pyrénées-Orientales, Tarn, Tarn-et-Garonne
A155: Bas-Rhin | B155: 4 | C155: 0 | D155: 1 | F155: Outre-mer | G155: 1 | H155: 6 | I155: =D178+D179+D207+D215+D224 -> 0 | J155: Guadeloupe, Guyane, Martinique, Mayotte, Nouvelle-Calédonie, Polynésie française, Réunion, Saint-Pierre-et-Miquelon
A156: Bouches-du-Rhône | B156: 34 | C156: 12 | D156: 6 | F156: Pays de la Loire | G156: 5 | H156: 8 | I156: =D199+D204+D208+D227+D240 -> 6 | J156: Loire-Atlantique, Maine-et-Loire, Mayenne, Sarthe, Vendée
A157: Calvados | B157: 0 | C157: 1 | D157: 0 | F157: Provence-Alpes-Côte d'Azur | G157: 38 | H157: 13 | I157: =D147+D148+D156+D187+D238+D239 -> 10 | J157: Alpes-de-Haute-Provence, Alpes-Maritimes, Bouches-du-Rhône, Hautes-Alpes, Var, Vaucluse
A158: Cantal | B158: 0 | C158: 0 | D158: 0 | F158: pas de département spécifié | G158: 21 | H158: 9 | I158: =D219 -> 8
A159: Charente | B159: 0 | C159: 0 | D159: 0 | F159: Total | G159: 1112 | H159: 739 | I159: =SUM(I144:I158) -> 945
A160: Charente-Maritime | B160: 0 | C160: 1 | D160: 1
A161: Cher | B161: 0 | C161: 0 | D161: 0
A162: Corrèze | B162: 0 | C162: 0 | D162: 0
A163: Corse | B163: 0 | C163: 0 | D163: 0
A164: Côte-d'Or | B164: 9 | C164: 2 | D164: 11
A165: Côtes-d'Armor | B165: 0 | C165: 0 | D165: 0
A166: Creuse | B166: 0 | C166: 0 | D166: 0
A167: Deux-Sèvres | B167: 0 | C167: 0 | D167: 0
A168: Dordogne | B168: 0 | C168: 0 | D168: 0
A169: Doubs | B169: 0 | C169: 0 | D169: 0
A170: Drôme | B170: 0 | C170: 0 | D170: 0
A171: Essonne | B171: 0 | C171: 0 | D171: 0
A172: Eure | B172: 0 | C172: 1 | D172: 1
A173: Eure-et-Loir | B173: 0 | C173: 0 | D173: 0
A174: Finistère | B174: 0 | C174: 0 | D174: 0
A175: Gard | B175: 0 | C175: 0 | D175: 0
A176: Gers | B176: 0 | C176: 1 | D176: 1
A177: Gironde | B177: 6 | C177: 1 | D177: 4
A178: Guadeloupe | B178: 1 | C178: 0 | D178: 0
A179: Guyane | B179: 0 | C179: 0 | D179: 0
A180: Haut-Rhin | B180: 0 | C180: 0 | D180: 0
A181: Haute-Garonne | B181: 0 | C181: 2 | D181: 0
A182: Haute-Loire | B182: 0 | C182: 0 | D182: 0
A183: Haute-Marne | B183: 0 | C183: 0 | D183: 0
A184: Haute-Saône | B184: 0 | C184: 0 | D184: 0
A185: Haute-Savoie | B185: 0 | C185: 0 | D185: 0
A186: Haute-Vienne | B186: 0 | C186: 0 | D186: 0
A187: Hautes-Alpes | B187: 0 | C187: 0 | D187: 0
A188: Hautes-Pyrénées | B188: 0 | C188: 0 | D188: 0
A189: Hauts-de-Seine | B189: 164 | C189: 32 | D189: 64
A190: Hérault | B190: 18 | C190: 1 | D190: 3
A191: Ille-et-Vilaine | B191: 0 | C191: 8 | D191: 1
A192: Indre | B192: 0 | C192: 0 | D192: 0
A193: Indre-et-Loire | B193: 0 | C193: 0 | D193: 0
A194: Isère | B194: 0 | C194: 1 | D194: 0
A195: Jura | B195: 0 | C195: 0 | D195: 0
A196: Landes | B196: 0 | C196: 0 | D196: 0
A197: Loir-et-Cher | B197: 0 | C197: 1 | D197: 0
A198: Loire | B198: 5 | C198: 11 | D198: 4
A199: Loire-Atlantique | B199: 0 | C199: 1 | D199: 0
A200: Loiret | B200: 0 | C200: 0 | D200: 0
A201: Lot | B201: 0 | C201: 0 | D201: 0
A202: Lot-et-Garonne | B202: 0 | C202: 0 | D202: 0
A203: Lozère | B203: 0 | C203: 0 | D203: 0
A204: Maine-et-Loire | B204: 0 | C204: 0 | D204: 2
... 78 more rows
